﻿Body Name,Supp ID,Supplier Name ,Supplier Name,Service Area Category,Supp Grp,Period,Invoice Date,TT,Unique Invoice Reference ,,Inv Amount,Account,Expenditure Description,Cost C,Cost Centre Name,Posted Amount
Nottinghamshire Fire and Rescue Service ,101001,Express Recruitment Ltd,Express Recruitment Ltd,Management & Support Services,1,202309,30/11/2022,P6,9103695,-753.06 ,753.06 ,1005,Admin Agency Staff,2087,Estates Department (Previously Premises),627.55 
Nottinghamshire Fire and Rescue Service ,101001,Express Recruitment Ltd,Express Recruitment Ltd,Management & Support Services,1,202309,07/12/2022,P6,9103784,-753.06 ,753.06 ,1005,Admin Agency Staff,2087,Estates Department (Previously Premises),627.55 
Nottinghamshire Fire and Rescue Service ,101001,Express Recruitment Ltd,Express Recruitment Ltd,Management & Support Services,1,202309,14/12/2022,P6,9103900,-753.06 ,753.06 ,1005,Admin Agency Staff,2087,Estates Department (Previously Premises),627.55 
Nottinghamshire Fire and Rescue Service ,103371,Nottinghamshire Healthcare NHS Trust,Nottinghamshire Healthcare NHS Trust,Management & Support Services,5,202309,20/12/2022,P6,9104275,"-4,592.68 ","4,592.68 ",1005,Admin Agency Staff,2068,Prevention,"4,592.68 "
Nottinghamshire Fire and Rescue Service ,101001,Express Recruitment Ltd,Express Recruitment Ltd,Management & Support Services,1,202309,21/12/2022,P6,9104279,-753.06 ,753.06 ,1005,Admin Agency Staff,2087,Estates Department (Previously Premises),627.55 
Nottinghamshire Fire and Rescue Service ,101001,Express Recruitment Ltd,Express Recruitment Ltd,Management & Support Services,1,202309,29/12/2022,P6,9104327,-753.06 ,753.06 ,1005,Admin Agency Staff,2087,Estates Department (Previously Premises),627.55 
Nottinghamshire Fire and Rescue Service ,100049,P&A Medical Ltd,P&A Medical Ltd,Management & Support Services,1,202309,30/11/2022,P6,9103702,"-1,416.00 ","1,416.00 ",1801,Training,2061,Occupational Health & Fitness,"1,180.00 "
Nottinghamshire Fire and Rescue Service ,104134,Xact Consultancy & Training Limited,Xact Consultancy & Training Limited,"Statutory Inspection, Certification & Enforcement",5,202309,05/12/2022,P6,9103734,-576.00 ,576.00 ,1801,Training,2021,Fire Protection,480.00 
Nottinghamshire Fire and Rescue Service ,102057,Cadcorp,Cadcorp,Management & Support Services,1,202309,07/12/2022,P6,9103736,"-4,320.00 ","4,320.00 ",1801,Training,2059,Corporate Training,"3,600.00 "
Nottinghamshire Fire and Rescue Service ,103869,Shelagh Roberts,Shelagh Roberts,Management & Support Services,5,202309,04/12/2022,P6,9103763,-285.00 ,285.00 ,1801,Training,2054,Equalities Team,285.00 
Nottinghamshire Fire and Rescue Service ,103869,Shelagh Roberts,Shelagh Roberts,Management & Support Services,5,202309,02/12/2022,P6,9103764,-285.00 ,285.00 ,1801,Training,2054,Equalities Team,285.00 
Nottinghamshire Fire and Rescue Service ,101847,The Outreach Organisation Limited,The Outreach Organisation Limited,Management & Support Services,1,202309,01/12/2022,P6,9103785,-852.00 ,852.00 ,1801,Training,2059,Corporate Training,710.00 
Nottinghamshire Fire and Rescue Service ,103498,Omniplex (Group) Limited,Omniplex (Group) Limited,Management & Support Services,5,202309,13/12/2022,P6,9103801,"-1,314.00 ","1,314.00 ",1801,Training,2059,Corporate Training,"1,095.00 "
Nottinghamshire Fire and Rescue Service ,100178,Skills For Justice,Skills For Justice,Management & Support Services,1,202309,13/12/2022,P6,9103881,-625.00 ,625.00 ,1801,Training,2059,Corporate Training,275.00 
Nottinghamshire Fire and Rescue Service ,100178,Skills For Justice,Skills For Justice,Management & Support Services,1,202309,13/12/2022,P6,9103881,-625.00 ,625.00 ,1801,Training,2059,Corporate Training,350.00 
Nottinghamshire Fire and Rescue Service ,102417,College of Policing,College of Policing,Management & Support Services,1,202309,14/12/2022,P6,9103912,"-3,392.50 ","3,392.50 ",1801,Training,2059,Corporate Training,"3,392.50 "
Nottinghamshire Fire and Rescue Service ,102417,College of Policing,College of Policing,Management & Support Services,1,202309,14/12/2022,P6,9103913,"-3,392.50 ","3,392.50 ",1801,Training,2059,Corporate Training,"3,392.50 "
Nottinghamshire Fire and Rescue Service ,104017,K Lamb Associates Limited,K Lamb Associates Limited,Management & Support Services,5,202309,19/12/2022,P6,9103926,"-7,800.00 ","7,800.00 ",1801,Training,2059,Corporate Training,"6,500.00 "
Nottinghamshire Fire and Rescue Service ,104252,RUTLAND TRADING CO LTD,RUTLAND TRADING CO LTD,"Statutory Inspection, Certification & Enforcement",5,202309,20/12/2022,P6,9103969,"-3,720.00 ","3,720.00 ",1801,Training,2021,Fire Protection,"3,100.00 "
Nottinghamshire Fire and Rescue Service ,103080,Rescue 3 Europe Limited,Rescue 3 Europe Limited,Management & Support Services,5,202309,20/12/2022,P6,9104253,"-5,400.00 ","5,400.00 ",1801,Training,2059,Corporate Training,"4,500.00 "
Nottinghamshire Fire and Rescue Service ,104168,ioda Limited,ioda Limited,Management & Support Services,5,202309,19/12/2022,P6,9104300,"-1,188.00 ","1,188.00 ",1801,Training,2054,Equalities Team,990.00 
Nottinghamshire Fire and Rescue Service ,104168,ioda Limited,ioda Limited,Management & Support Services,5,202309,02/12/2022,P6,9104301,"-2,376.00 ","2,376.00 ",1801,Training,2054,Equalities Team,"1,980.00 "
Nottinghamshire Fire and Rescue Service ,103377,Flat Fee Recruiter Limited,Flat Fee Recruiter Limited,Management & Support Services,5,202309,04/10/2022,P6,9103730,-597.60 ,597.60 ,1850,Recruitment Advertising,2049,Professional Support,498.00 
Nottinghamshire Fire and Rescue Service ,100557,NCC Sundry Debtors,NCC Sundry Debtors,Management & Support Services,4,202309,04/11/2022,P6,9103766,"-1,110.60 ","1,110.60 ",1850,Recruitment Advertising,2049,Professional Support,925.50 
Nottinghamshire Fire and Rescue Service ,103377,Flat Fee Recruiter Limited,Flat Fee Recruiter Limited,Management & Support Services,5,202309,07/12/2022,P6,9103771,-298.80 ,298.80 ,1850,Recruitment Advertising,2049,Professional Support,249.00 
Nottinghamshire Fire and Rescue Service ,104094,Greys Specialist Recruitment Limited,Greys Specialist Recruitment Limited,Management & Support Services,5,202309,17/10/2022,P6,9103775,"-4,855.50 ","4,855.50 ",1850,Recruitment Advertising,2049,Professional Support,"4,046.25 "
Nottinghamshire Fire and Rescue Service ,100557,NCC Sundry Debtors,NCC Sundry Debtors,Management & Support Services,4,202309,25/10/2022,P6,9103781,-644.40 ,644.40 ,1850,Recruitment Advertising,2049,Professional Support,537.00 
Nottinghamshire Fire and Rescue Service ,103377,Flat Fee Recruiter Limited,Flat Fee Recruiter Limited,Management & Support Services,5,202309,12/12/2022,P6,9103879,-298.80 ,298.80 ,1850,Recruitment Advertising,2049,Professional Support,249.00 
Nottinghamshire Fire and Rescue Service ,103377,Flat Fee Recruiter Limited,Flat Fee Recruiter Limited,Management & Support Services,5,202309,15/12/2022,P6,9103925,-298.80 ,298.80 ,1850,Recruitment Advertising,2049,Professional Support,249.00 
Nottinghamshire Fire and Rescue Service ,103923,Bupa UK Insurance Services,Bupa UK Insurance Services,Management & Support Services,5,202309,29/11/2022,P6,9103689,"-3,262.87 ","3,262.87 ",1860,Employee Benefits Schemes,2049,Professional Support,"3,262.87 "
Nottinghamshire Fire and Rescue Service ,104216,SME HCI Ltd (Trading as Vivup),SME HCI Ltd (Trading as Vivup),Management & Support Services,5,202309,17/11/2022,P6,9103768,"-2,460.00 ","2,460.00 ",1860,Employee Benefits Schemes,2049,Professional Support,"2,050.00 "
Nottinghamshire Fire and Rescue Service ,104216,SME HCI Ltd (Trading as Vivup),SME HCI Ltd (Trading as Vivup),Management & Support Services,5,202309,02/03/2022,P6,9103782,"-2,460.00 ","2,460.00 ",1860,Employee Benefits Schemes,2049,Professional Support,"2,050.00 "
Nottinghamshire Fire and Rescue Service ,104216,SME HCI Ltd (Trading as Vivup),SME HCI Ltd (Trading as Vivup),Management & Support Services,5,202309,17/11/2022,P6,9103927,-590.40 ,590.40 ,1860,Employee Benefits Schemes,2049,Professional Support,492.00 
Nottinghamshire Fire and Rescue Service ,102051,Johnsons Business Moves,Johnsons Business Moves,Management & Support Services,1,202309,18/11/2022,P6,9103735,"-2,094.00 ","2,094.00 ",2000,Buildings Repairs and Maintenance - Reactive,4102,Strategic New Build Projects,"1,745.00 "
Nottinghamshire Fire and Rescue Service ,100357,Eastern Shires Purchasing Organisation,Eastern Shires Purchasing Organisation,Operational Responses,1,202309,08/12/2022,P6,9104270,-370.80 ,370.80 ,2000,Buildings Repairs and Maintenance - Reactive,1001,Mansfield,309.00 
Nottinghamshire Fire and Rescue Service ,104235,Integrated Water Services,Integrated Water Services,Operational Responses,5,202309,16/11/2022,P6,9103776,-299.40 ,299.40 ,2050,Building Maintenance - Planned,1013,Tuxford,249.50 
Nottinghamshire Fire and Rescue Service ,104235,Integrated Water Services,Integrated Water Services,Operational Responses,5,202309,31/10/2022,P6,9103777,-264.60 ,264.60 ,2050,Building Maintenance - Planned,1017,Bingham,220.50 
Nottinghamshire Fire and Rescue Service ,104235,Integrated Water Services,Integrated Water Services,Operational Responses,5,202309,25/10/2022,P6,9103778,-303.00 ,303.00 ,2050,Building Maintenance - Planned,1010,Harworth,252.50 
Nottinghamshire Fire and Rescue Service ,102280,Amptron Electrical Services,Amptron Electrical Services,Operational Responses,1,202309,30/11/2022,P6,9103790,"-25,607.57 ","25,607.57 ",2050,Building Maintenance - Planned,1001,Mansfield,900.53 
Nottinghamshire Fire and Rescue Service ,102280,Amptron Electrical Services,Amptron Electrical Services,Operational Responses,1,202309,30/11/2022,P6,9103790,"-25,607.57 ","25,607.57 ",2050,Building Maintenance - Planned,1002,Blidworth,438.82 
Nottinghamshire Fire and Rescue Service ,102280,Amptron Electrical Services,Amptron Electrical Services,Operational Responses,1,202309,30/11/2022,P6,9103790,"-25,607.57 ","25,607.57 ",2050,Building Maintenance - Planned,1003,London Road,"1,124.80 "
Nottinghamshire Fire and Rescue Service ,102280,Amptron Electrical Services,Amptron Electrical Services,Operational Responses,1,202309,30/11/2022,P6,9103790,"-25,607.57 ","25,607.57 ",2050,Building Maintenance - Planned,1005,Ashfield,"1,209.30 "
Nottinghamshire Fire and Rescue Service ,102280,Amptron Electrical Services,Amptron Electrical Services,Operational Responses,1,202309,30/11/2022,P6,9103790,"-25,607.57 ","25,607.57 ",2050,Building Maintenance - Planned,1006,Edwinstowe,"1,173.05 "
Nottinghamshire Fire and Rescue Service ,102280,Amptron Electrical Services,Amptron Electrical Services,Operational Responses,1,202309,30/11/2022,P6,9103790,"-25,607.57 ","25,607.57 ",2050,Building Maintenance - Planned,1007,Warsop,461.27 
Nottinghamshire Fire and Rescue Service ,102280,Amptron Electrical Services,Amptron Electrical Services,Operational Responses,1,202309,30/11/2022,P6,9103790,"-25,607.57 ","25,607.57 ",2050,Building Maintenance - Planned,1010,Harworth,391.60 
Nottinghamshire Fire and Rescue Service ,102280,Amptron Electrical Services,Amptron Electrical Services,Operational Responses,1,202309,30/11/2022,P6,9103790,"-25,607.57 ","25,607.57 ",2050,Building Maintenance - Planned,1011,Misterton,468.04 
Nottinghamshire Fire and Rescue Service ,102280,Amptron Electrical Services,Amptron Electrical Services,Operational Responses,1,202309,30/11/2022,P6,9103790,"-25,607.57 ","25,607.57 ",2050,Building Maintenance - Planned,1012,Retford,"1,216.52 "
Nottinghamshire Fire and Rescue Service ,102280,Amptron Electrical Services,Amptron Electrical Services,Operational Responses,1,202309,30/11/2022,P6,9103790,"-25,607.57 ","25,607.57 ",2050,Building Maintenance - Planned,1013,Tuxford,"1,292.05 "
Nottinghamshire Fire and Rescue Service ,102280,Amptron Electrical Services,Amptron Electrical Services,Operational Responses,1,202309,30/11/2022,P6,9103790,"-25,607.57 ","25,607.57 ",2050,Building Maintenance - Planned,1014,Southwell,870.15 
Nottinghamshire Fire and Rescue Service ,102280,Amptron Electrical Services,Amptron Electrical Services,Operational Responses,1,202309,30/11/2022,P6,9103790,"-25,607.57 ","25,607.57 ",2050,Building Maintenance - Planned,1015,Collingham,441.15 
Nottinghamshire Fire and Rescue Service ,102280,Amptron Electrical Services,Amptron Electrical Services,Operational Responses,1,202309,30/11/2022,P6,9103790,"-25,607.57 ","25,607.57 ",2050,Building Maintenance - Planned,1016,Newark,"1,289.18 "
Nottinghamshire Fire and Rescue Service ,102280,Amptron Electrical Services,Amptron Electrical Services,Operational Responses,1,202309,30/11/2022,P6,9103790,"-25,607.57 ","25,607.57 ",2050,Building Maintenance - Planned,1017,Bingham,399.63 
Nottinghamshire Fire and Rescue Service ,102280,Amptron Electrical Services,Amptron Electrical Services,Operational Responses,1,202309,30/11/2022,P6,9103790,"-25,607.57 ","25,607.57 ",2050,Building Maintenance - Planned,1019,West Bridgford,"1,205.39 "
Nottinghamshire Fire and Rescue Service ,102280,Amptron Electrical Services,Amptron Electrical Services,Operational Responses,1,202309,30/11/2022,P6,9103790,"-25,607.57 ","25,607.57 ",2050,Building Maintenance - Planned,1020,Stockhill,"1,462.39 "
Nottinghamshire Fire and Rescue Service ,102280,Amptron Electrical Services,Amptron Electrical Services,Operational Responses,1,202309,30/11/2022,P6,9103790,"-25,607.57 ","25,607.57 ",2050,Building Maintenance - Planned,1023,Stapleford,444.87 
Nottinghamshire Fire and Rescue Service ,102280,Amptron Electrical Services,Amptron Electrical Services,Operational Responses,1,202309,30/11/2022,P6,9103790,"-25,607.57 ","25,607.57 ",2050,Building Maintenance - Planned,1024,Eastwood,405.14 
Nottinghamshire Fire and Rescue Service ,102280,Amptron Electrical Services,Amptron Electrical Services,Operational Responses,1,202309,30/11/2022,P6,9103790,"-25,607.57 ","25,607.57 ",2050,Building Maintenance - Planned,1025,Hucknall,33.52 
Nottinghamshire Fire and Rescue Service ,102280,Amptron Electrical Services,Amptron Electrical Services,Operational Responses,1,202309,30/11/2022,P6,9103790,"-25,607.57 ","25,607.57 ",2050,Building Maintenance - Planned,1026,Arnold,"1,195.77 "
Nottinghamshire Fire and Rescue Service ,102280,Amptron Electrical Services,Amptron Electrical Services,Operational Responses,1,202309,30/11/2022,P6,9103790,"-25,607.57 ","25,607.57 ",2050,Building Maintenance - Planned,1027,Carlton,"1,114.78 "
Nottinghamshire Fire and Rescue Service ,102280,Amptron Electrical Services,Amptron Electrical Services,Operational Responses,1,202309,30/11/2022,P6,9103790,"-25,607.57 ","25,607.57 ",2050,Building Maintenance - Planned,1028,East Leake,575.32 
Nottinghamshire Fire and Rescue Service ,102280,Amptron Electrical Services,Amptron Electrical Services,Operational Responses,1,202309,30/11/2022,P6,9103790,"-25,607.57 ","25,607.57 ",2050,Building Maintenance - Planned,1029,Highfields Station,"1,898.02 "
Nottinghamshire Fire and Rescue Service ,102280,Amptron Electrical Services,Amptron Electrical Services,Management & Support Services,1,202309,30/11/2022,P6,9103790,"-25,607.57 ","25,607.57 ",2050,Building Maintenance - Planned,1030,Service Development Centre,"1,328.35 "
Nottinghamshire Fire and Rescue Service ,104235,Integrated Water Services,Integrated Water Services,Operational Responses,5,202309,13/12/2022,P6,9103919,-276.60 ,276.60 ,2050,Building Maintenance - Planned,1024,Eastwood,230.50 
Nottinghamshire Fire and Rescue Service ,104235,Integrated Water Services,Integrated Water Services,Operational Responses,5,202309,13/12/2022,P6,9103920,-712.20 ,712.20 ,2050,Building Maintenance - Planned,1001,Mansfield,593.50 
Nottinghamshire Fire and Rescue Service ,104235,Integrated Water Services,Integrated Water Services,Operational Responses,5,202309,13/12/2022,P6,9103921,-417.00 ,417.00 ,2050,Building Maintenance - Planned,1003,London Road,347.50 
Nottinghamshire Fire and Rescue Service ,102280,Amptron Electrical Services,Amptron Electrical Services,Operational Responses,1,202309,19/12/2022,P6,9103928,"-9,545.59 ","9,545.59 ",2050,Building Maintenance - Planned,1001,Mansfield,288.07 
Nottinghamshire Fire and Rescue Service ,102280,Amptron Electrical Services,Amptron Electrical Services,Operational Responses,1,202309,19/12/2022,P6,9103928,"-9,545.59 ","9,545.59 ",2050,Building Maintenance - Planned,1002,Blidworth,242.55 
Nottinghamshire Fire and Rescue Service ,102280,Amptron Electrical Services,Amptron Electrical Services,Operational Responses,1,202309,19/12/2022,P6,9103928,"-9,545.59 ","9,545.59 ",2050,Building Maintenance - Planned,1003,London Road,288.07 
Nottinghamshire Fire and Rescue Service ,102280,Amptron Electrical Services,Amptron Electrical Services,Operational Responses,1,202309,19/12/2022,P6,9103928,"-9,545.59 ","9,545.59 ",2050,Building Maintenance - Planned,1005,Ashfield,288.07 
Nottinghamshire Fire and Rescue Service ,102280,Amptron Electrical Services,Amptron Electrical Services,Operational Responses,1,202309,19/12/2022,P6,9103928,"-9,545.59 ","9,545.59 ",2050,Building Maintenance - Planned,1006,Edwinstowe,469.21 
Nottinghamshire Fire and Rescue Service ,102280,Amptron Electrical Services,Amptron Electrical Services,Operational Responses,1,202309,19/12/2022,P6,9103928,"-9,545.59 ","9,545.59 ",2050,Building Maintenance - Planned,1007,Warsop,461.81 
Nottinghamshire Fire and Rescue Service ,102280,Amptron Electrical Services,Amptron Electrical Services,Operational Responses,1,202309,19/12/2022,P6,9103928,"-9,545.59 ","9,545.59 ",2050,Building Maintenance - Planned,1010,Harworth,276.07 
Nottinghamshire Fire and Rescue Service ,102280,Amptron Electrical Services,Amptron Electrical Services,Operational Responses,1,202309,19/12/2022,P6,9103928,"-9,545.59 ","9,545.59 ",2050,Building Maintenance - Planned,1011,Misterton,259.27 
Nottinghamshire Fire and Rescue Service ,102280,Amptron Electrical Services,Amptron Electrical Services,Operational Responses,1,202309,19/12/2022,P6,9103928,"-9,545.59 ","9,545.59 ",2050,Building Maintenance - Planned,1012,Retford,254.55 
Nottinghamshire Fire and Rescue Service ,102280,Amptron Electrical Services,Amptron Electrical Services,Operational Responses,1,202309,19/12/2022,P6,9103928,"-9,545.59 ","9,545.59 ",2050,Building Maintenance - Planned,1013,Tuxford,242.55 
Nottinghamshire Fire and Rescue Service ,102280,Amptron Electrical Services,Amptron Electrical Services,Operational Responses,1,202309,19/12/2022,P6,9103928,"-9,545.59 ","9,545.59 ",2050,Building Maintenance - Planned,1014,Southwell,242.55 
Nottinghamshire Fire and Rescue Service ,102280,Amptron Electrical Services,Amptron Electrical Services,Operational Responses,1,202309,19/12/2022,P6,9103928,"-9,545.59 ","9,545.59 ",2050,Building Maintenance - Planned,1015,Collingham,242.55 
Nottinghamshire Fire and Rescue Service ,102280,Amptron Electrical Services,Amptron Electrical Services,Operational Responses,1,202309,19/12/2022,P6,9103928,"-9,545.59 ","9,545.59 ",2050,Building Maintenance - Planned,1016,Newark,309.57 
Nottinghamshire Fire and Rescue Service ,102280,Amptron Electrical Services,Amptron Electrical Services,Operational Responses,1,202309,19/12/2022,P6,9103928,"-9,545.59 ","9,545.59 ",2050,Building Maintenance - Planned,1017,Bingham,242.55 
Nottinghamshire Fire and Rescue Service ,102280,Amptron Electrical Services,Amptron Electrical Services,Operational Responses,1,202309,19/12/2022,P6,9103928,"-9,545.59 ","9,545.59 ",2050,Building Maintenance - Planned,1019,West Bridgford,288.07 
Nottinghamshire Fire and Rescue Service ,102280,Amptron Electrical Services,Amptron Electrical Services,Operational Responses,1,202309,19/12/2022,P6,9103928,"-9,545.59 ","9,545.59 ",2050,Building Maintenance - Planned,1020,Stockhill,288.07 
Nottinghamshire Fire and Rescue Service ,102280,Amptron Electrical Services,Amptron Electrical Services,Operational Responses,1,202309,19/12/2022,P6,9103928,"-9,545.59 ","9,545.59 ",2050,Building Maintenance - Planned,1023,Stapleford,242.55 
Nottinghamshire Fire and Rescue Service ,102280,Amptron Electrical Services,Amptron Electrical Services,Operational Responses,1,202309,19/12/2022,P6,9103928,"-9,545.59 ","9,545.59 ",2050,Building Maintenance - Planned,1024,Eastwood,242.55 
Nottinghamshire Fire and Rescue Service ,102280,Amptron Electrical Services,Amptron Electrical Services,Operational Responses,1,202309,19/12/2022,P6,9103928,"-9,545.59 ","9,545.59 ",2050,Building Maintenance - Planned,1026,Arnold,254.55 
Nottinghamshire Fire and Rescue Service ,102280,Amptron Electrical Services,Amptron Electrical Services,Operational Responses,1,202309,19/12/2022,P6,9103928,"-9,545.59 ","9,545.59 ",2050,Building Maintenance - Planned,1027,Carlton,288.07 
Nottinghamshire Fire and Rescue Service ,102280,Amptron Electrical Services,Amptron Electrical Services,Operational Responses,1,202309,19/12/2022,P6,9103928,"-9,545.59 ","9,545.59 ",2050,Building Maintenance - Planned,1028,East Leake,242.55 
Nottinghamshire Fire and Rescue Service ,102280,Amptron Electrical Services,Amptron Electrical Services,Operational Responses,1,202309,19/12/2022,P6,9103928,"-9,545.59 ","9,545.59 ",2050,Building Maintenance - Planned,1029,Highfields Station,355.54 
Nottinghamshire Fire and Rescue Service ,102280,Amptron Electrical Services,Amptron Electrical Services,Management & Support Services,1,202309,19/12/2022,P6,9103928,"-9,545.59 ","9,545.59 ",2050,Building Maintenance - Planned,1030,Service Development Centre,"1,645.27 "
Nottinghamshire Fire and Rescue Service ,103837,BWT UK Limited,BWT UK Limited,Management & Support Services,5,202309,30/11/2022,P6,9103932,-592.19 ,592.19 ,2050,Building Maintenance - Planned,2087,Estates Department (Previously Premises),493.50 
Nottinghamshire Fire and Rescue Service ,102280,Amptron Electrical Services,Amptron Electrical Services,Operational Responses,1,202309,23/12/2022,P6,9104312,"-38,400.00 ","38,400.00 ",2050,Building Maintenance - Planned,1005,Ashfield,"32,000.00 "
Nottinghamshire Fire and Rescue Service ,102744,EDF Energy,EDF Energy,Operational Responses,1,202309,08/12/2022,P6,9103868,-270.00 ,270.00 ,2100,Electricity,1008,Worksop,225.00 
Nottinghamshire Fire and Rescue Service ,102744,EDF Energy,EDF Energy,Operational Responses,1,202309,06/12/2022,P6,9103869,"-25,133.28 ","25,133.28 ",2100,Electricity,1003,London Road,"2,901.02 "
Nottinghamshire Fire and Rescue Service ,102744,EDF Energy,EDF Energy,Operational Responses,1,202309,06/12/2022,P6,9103869,"-25,133.28 ","25,133.28 ",2100,Electricity,1012,Retford,"1,743.09 "
Nottinghamshire Fire and Rescue Service ,102744,EDF Energy,EDF Energy,Operational Responses,1,202309,06/12/2022,P6,9103869,"-25,133.28 ","25,133.28 ",2100,Electricity,1016,Newark,"1,431.54 "
Nottinghamshire Fire and Rescue Service ,102744,EDF Energy,EDF Energy,Operational Responses,1,202309,06/12/2022,P6,9103869,"-25,133.28 ","25,133.28 ",2100,Electricity,1027,Carlton,"2,585.72 "
Nottinghamshire Fire and Rescue Service ,102744,EDF Energy,EDF Energy,Operational Responses,1,202309,06/12/2022,P6,9103869,"-25,133.28 ","25,133.28 ",2100,Electricity,1029,Highfields Station,"6,475.83 "
Nottinghamshire Fire and Rescue Service ,102744,EDF Energy,EDF Energy,Management & Support Services,1,202309,06/12/2022,P6,9103869,"-25,133.28 ","25,133.28 ",2100,Electricity,1030,Service Development Centre,"2,956.81 "
Nottinghamshire Fire and Rescue Service ,102744,EDF Energy,EDF Energy,Management & Support Services,1,202309,06/12/2022,P6,9103869,"-25,133.28 ","25,133.28 ",2100,Electricity,1035,Headquarters,"2,841.58 "
Nottinghamshire Fire and Rescue Service ,102744,EDF Energy,EDF Energy,Management & Support Services,1,202309,06/12/2022,P6,9103869,"-25,133.28 ","25,133.28 ",2100,Electricity,2087,Estates Department (Previously Premises),10.60 
Nottinghamshire Fire and Rescue Service ,102744,EDF Energy,EDF Energy,Operational Responses,1,202309,08/12/2022,P6,9104061,-419.52 ,419.52 ,2100,Electricity,1028,East Leake,-1.39 
Nottinghamshire Fire and Rescue Service ,102744,EDF Energy,EDF Energy,Operational Responses,1,202309,08/12/2022,P6,9104061,-419.52 ,419.52 ,2100,Electricity,1028,East Leake,350.76 
Nottinghamshire Fire and Rescue Service ,102744,EDF Energy,EDF Energy,Operational Responses,1,202309,21/11/2022,P6,9104249,"-2,704.17 ","2,704.17 ",2100,Electricity,1001,Mansfield,13.11 
Nottinghamshire Fire and Rescue Service ,102744,EDF Energy,EDF Energy,Operational Responses,1,202309,21/11/2022,P6,9104249,"-2,704.17 ","2,704.17 ",2100,Electricity,1001,Mansfield,"2,242.55 "
Nottinghamshire Fire and Rescue Service ,102744,EDF Energy,EDF Energy,Operational Responses,1,202309,25/11/2022,P6,9104250,"-4,803.74 ","4,803.74 ",2100,Electricity,1020,Stockhill,5.44 
Nottinghamshire Fire and Rescue Service ,102744,EDF Energy,EDF Energy,Operational Responses,1,202309,25/11/2022,P6,9104250,"-4,803.74 ","4,803.74 ",2100,Electricity,1020,Stockhill,"3,998.59 "
Nottinghamshire Fire and Rescue Service ,102744,EDF Energy,EDF Energy,Prevention & Education,1,202309,25/11/2022,P6,9104251,"-1,751.16 ","1,751.16 ",2100,Electricity,1036,Clifton Community Safety Centre,"1,459.29 "
Nottinghamshire Fire and Rescue Service ,102744,EDF Energy,EDF Energy,Operational Responses,1,202309,30/11/2022,P6,9104252,-387.01 ,387.01 ,2100,Electricity,1002,Blidworth,0.87 
Nottinghamshire Fire and Rescue Service ,102744,EDF Energy,EDF Energy,Operational Responses,1,202309,30/11/2022,P6,9104252,-387.01 ,387.01 ,2100,Electricity,1002,Blidworth,321.78 
Nottinghamshire Fire and Rescue Service ,102744,EDF Energy,EDF Energy,Operational Responses,1,202309,30/11/2022,P6,9104254,-378.66 ,378.66 ,2100,Electricity,1001,Mansfield,-1.17 
Nottinghamshire Fire and Rescue Service ,102744,EDF Energy,EDF Energy,Operational Responses,1,202309,30/11/2022,P6,9104254,-378.66 ,378.66 ,2100,Electricity,1001,Mansfield,316.53 
Nottinghamshire Fire and Rescue Service ,102744,EDF Energy,EDF Energy,Operational Responses,1,202309,30/11/2022,P6,9104256,-904.14 ,904.14 ,2100,Electricity,1013,Tuxford,-1.25 
Nottinghamshire Fire and Rescue Service ,102744,EDF Energy,EDF Energy,Operational Responses,1,202309,30/11/2022,P6,9104256,-904.14 ,904.14 ,2100,Electricity,1013,Tuxford,754.49 
Nottinghamshire Fire and Rescue Service ,102744,EDF Energy,EDF Energy,Operational Responses,1,202309,30/11/2022,P6,9104257,"-1,660.16 ","1,660.16 ",2100,Electricity,1026,Arnold,-20.69 
Nottinghamshire Fire and Rescue Service ,102744,EDF Energy,EDF Energy,Operational Responses,1,202309,30/11/2022,P6,9104257,"-1,660.16 ","1,660.16 ",2100,Electricity,1026,Arnold,"1,400.71 "
Nottinghamshire Fire and Rescue Service ,102744,EDF Energy,EDF Energy,Operational Responses,1,202309,30/11/2022,P6,9104258,"-2,176.90 ","2,176.90 ",2100,Electricity,1024,Eastwood,"1,814.08 "
Nottinghamshire Fire and Rescue Service ,102744,EDF Energy,EDF Energy,Operational Responses,1,202309,30/11/2022,P6,9104259,-442.54 ,442.54 ,2100,Electricity,1015,Collingham,-2.13 
Nottinghamshire Fire and Rescue Service ,102744,EDF Energy,EDF Energy,Operational Responses,1,202309,30/11/2022,P6,9104259,-442.54 ,442.54 ,2100,Electricity,1015,Collingham,370.56 
Nottinghamshire Fire and Rescue Service ,102744,EDF Energy,EDF Energy,Operational Responses,1,202309,01/12/2022,P6,9104260,"-4,037.55 ","4,037.55 ",2100,Electricity,1008,Worksop,-0.10 
Nottinghamshire Fire and Rescue Service ,102744,EDF Energy,EDF Energy,Operational Responses,1,202309,01/12/2022,P6,9104260,"-4,037.55 ","4,037.55 ",2100,Electricity,1008,Worksop,"3,364.71 "
Nottinghamshire Fire and Rescue Service ,102744,EDF Energy,EDF Energy,Operational Responses,1,202309,08/12/2022,P6,9104262,"-2,861.79 ","2,861.79 ",2100,Electricity,1001,Mansfield,-15.48 
Nottinghamshire Fire and Rescue Service ,102744,EDF Energy,EDF Energy,Operational Responses,1,202309,08/12/2022,P6,9104262,"-2,861.79 ","2,861.79 ",2100,Electricity,1001,Mansfield,"2,397.72 "
Nottinghamshire Fire and Rescue Service ,102744,EDF Energy,EDF Energy,Operational Responses,1,202309,08/12/2022,P6,9104263,-603.61 ,603.61 ,2100,Electricity,1007,Warsop,-0.55 
Nottinghamshire Fire and Rescue Service ,102744,EDF Energy,EDF Energy,Operational Responses,1,202309,08/12/2022,P6,9104263,-603.61 ,603.61 ,2100,Electricity,1007,Warsop,503.47 
Nottinghamshire Fire and Rescue Service ,102744,EDF Energy,EDF Energy,Operational Responses,1,202309,07/12/2022,P6,9104264,-495.88 ,495.88 ,2100,Electricity,1014,Southwell,-1.47 
Nottinghamshire Fire and Rescue Service ,102744,EDF Energy,EDF Energy,Operational Responses,1,202309,07/12/2022,P6,9104264,-495.88 ,495.88 ,2100,Electricity,1014,Southwell,414.46 
Nottinghamshire Fire and Rescue Service ,102655,Nottingham City Council (City Treasurer),Nottingham City Council (City Treasurer),Operational Responses,1,202309,07/12/2022,P6,9103867,"-1,212.82 ","1,212.82 ",2101,Gas,1003,London Road,"1,010.68 "
Nottinghamshire Fire and Rescue Service ,104098,Total Gas & Power Limited,Total Gas & Power Limited,Operational Responses,5,202309,08/12/2022,P6,9103871,-297.32 ,297.32 ,2101,Gas,1012,Retford,283.16 
Nottinghamshire Fire and Rescue Service ,104098,Total Gas & Power Limited,Total Gas & Power Limited,Operational Responses,5,202309,08/12/2022,P6,9103872,-305.67 ,305.67 ,2101,Gas,1012,Retford,291.11 
Nottinghamshire Fire and Rescue Service ,104098,Total Gas & Power Limited,Total Gas & Power Limited,Operational Responses,5,202309,14/12/2022,P6,9103945,-777.83 ,777.83 ,2101,Gas,1015,Collingham,648.19 
Nottinghamshire Fire and Rescue Service ,104098,Total Gas & Power Limited,Total Gas & Power Limited,Operational Responses,5,202309,14/12/2022,P6,9103959,-760.66 ,760.66 ,2101,Gas,1016,Newark,633.88 
Nottinghamshire Fire and Rescue Service ,104098,Total Gas & Power Limited,Total Gas & Power Limited,Operational Responses,5,202309,14/12/2022,P6,9103960,"-3,490.90 ","3,490.90 ",2101,Gas,1001,Mansfield,"2,909.08 "
Nottinghamshire Fire and Rescue Service ,104098,Total Gas & Power Limited,Total Gas & Power Limited,Operational Responses,5,202309,14/12/2022,P6,9103962,"-2,637.95 ","2,637.95 ",2101,Gas,1029,Highfields Station,"2,198.29 "
Nottinghamshire Fire and Rescue Service ,104098,Total Gas & Power Limited,Total Gas & Power Limited,Operational Responses,5,202309,14/12/2022,P6,9103963,-668.70 ,668.70 ,2101,Gas,1001,Mansfield,557.25 
Nottinghamshire Fire and Rescue Service ,104098,Total Gas & Power Limited,Total Gas & Power Limited,Operational Responses,5,202309,14/12/2022,P6,9103966,"-1,056.81 ","1,056.81 ",2101,Gas,1006,Edwinstowe,880.68 
Nottinghamshire Fire and Rescue Service ,104098,Total Gas & Power Limited,Total Gas & Power Limited,Operational Responses,5,202309,14/12/2022,P6,9103970,"-3,182.42 ","3,182.42 ",2101,Gas,1005,Ashfield,"2,652.02 "
Nottinghamshire Fire and Rescue Service ,104098,Total Gas & Power Limited,Total Gas & Power Limited,Operational Responses,5,202309,14/12/2022,P6,9103972,-521.45 ,521.45 ,2101,Gas,1010,Harworth,434.54 
Nottinghamshire Fire and Rescue Service ,104098,Total Gas & Power Limited,Total Gas & Power Limited,Operational Responses,5,202309,14/12/2022,P6,9103975,-348.25 ,348.25 ,2101,Gas,1015,Collingham,331.66 
Nottinghamshire Fire and Rescue Service ,104098,Total Gas & Power Limited,Total Gas & Power Limited,Operational Responses,5,202309,14/12/2022,P6,9103977,-264.15 ,264.15 ,2101,Gas,1014,Southwell,251.57 
Nottinghamshire Fire and Rescue Service ,104098,Total Gas & Power Limited,Total Gas & Power Limited,Operational Responses,5,202309,14/12/2022,P6,9103981,-601.21 ,601.21 ,2101,Gas,1019,West Bridgford,501.01 
Nottinghamshire Fire and Rescue Service ,104098,Total Gas & Power Limited,Total Gas & Power Limited,Operational Responses,5,202309,14/12/2022,P6,9103982,"-2,422.00 ","2,422.00 ",2101,Gas,1008,Worksop,"2,018.33 "
Nottinghamshire Fire and Rescue Service ,104098,Total Gas & Power Limited,Total Gas & Power Limited,Operational Responses,5,202309,14/12/2022,P6,9103984,"-2,513.86 ","2,513.86 ",2101,Gas,1024,Eastwood,"2,094.88 "
Nottinghamshire Fire and Rescue Service ,104098,Total Gas & Power Limited,Total Gas & Power Limited,Operational Responses,5,202309,14/12/2022,P6,9103986,-295.54 ,295.54 ,2101,Gas,1012,Retford,281.47 
Nottinghamshire Fire and Rescue Service ,104098,Total Gas & Power Limited,Total Gas & Power Limited,Operational Responses,5,202309,14/12/2022,P6,9103988,"-1,285.86 ","1,285.86 ",2101,Gas,1027,Carlton,"1,071.55 "
Nottinghamshire Fire and Rescue Service ,104098,Total Gas & Power Limited,Total Gas & Power Limited,Operational Responses,5,202309,14/12/2022,P6,9103990,"-1,809.43 ","1,809.43 ",2101,Gas,1026,Arnold,"1,507.86 "
Nottinghamshire Fire and Rescue Service ,104098,Total Gas & Power Limited,Total Gas & Power Limited,Management & Support Services,5,202309,14/12/2022,P6,9103994,-262.95 ,262.95 ,2101,Gas,1035,Headquarters,250.42 
Nottinghamshire Fire and Rescue Service ,104098,Total Gas & Power Limited,Total Gas & Power Limited,Operational Responses,5,202309,14/12/2022,P6,9103995,-536.74 ,536.74 ,2101,Gas,1017,Bingham,447.29 
Nottinghamshire Fire and Rescue Service ,104098,Total Gas & Power Limited,Total Gas & Power Limited,Management & Support Services,5,202309,14/12/2022,P6,9103997,"-1,431.86 ","1,431.86 ",2101,Gas,1030,Service Development Centre,"1,193.22 "
Nottinghamshire Fire and Rescue Service ,104098,Total Gas & Power Limited,Total Gas & Power Limited,Operational Responses,5,202309,14/12/2022,P6,9103998,"-2,790.64 ","2,790.64 ",2101,Gas,1020,Stockhill,"2,325.54 "
Nottinghamshire Fire and Rescue Service ,104098,Total Gas & Power Limited,Total Gas & Power Limited,Operational Responses,5,202309,08/12/2022,P6,9103807,908.87 ,-908.87 ,2101,Gas,1012,Retford,-757.39 
Nottinghamshire Fire and Rescue Service ,104007,Castle Water Limited,Castle Water Limited,Management & Support Services,5,202309,03/11/2022,P6,9103821,-910.42 ,910.42 ,2103,Water Rates,1030,Service Development Centre,10.87 
Nottinghamshire Fire and Rescue Service ,104007,Castle Water Limited,Castle Water Limited,Management & Support Services,5,202309,03/11/2022,P6,9103821,-910.42 ,910.42 ,2103,Water Rates,1030,Service Development Centre,532.19 
Nottinghamshire Fire and Rescue Service ,104007,Castle Water Limited,Castle Water Limited,Operational Responses,5,202309,03/11/2022,P6,9103822,-752.61 ,752.61 ,2103,Water Rates,1029,Highfields Station,20.31 
Nottinghamshire Fire and Rescue Service ,104007,Castle Water Limited,Castle Water Limited,Operational Responses,5,202309,03/11/2022,P6,9103822,-752.61 ,752.61 ,2103,Water Rates,1029,Highfields Station,433.20 
Nottinghamshire Fire and Rescue Service ,104007,Castle Water Limited,Castle Water Limited,Operational Responses,5,202309,03/11/2022,P6,9103823,-545.34 ,545.34 ,2103,Water Rates,1019,West Bridgford,20.10 
Nottinghamshire Fire and Rescue Service ,104007,Castle Water Limited,Castle Water Limited,Operational Responses,5,202309,03/11/2022,P6,9103823,-545.34 ,545.34 ,2103,Water Rates,1019,West Bridgford,209.75 
Nottinghamshire Fire and Rescue Service ,104007,Castle Water Limited,Castle Water Limited,Operational Responses,5,202309,03/11/2022,P6,9103824,-502.34 ,502.34 ,2103,Water Rates,1016,Newark,19.82 
Nottinghamshire Fire and Rescue Service ,104007,Castle Water Limited,Castle Water Limited,Operational Responses,5,202309,03/11/2022,P6,9103824,-502.34 ,502.34 ,2103,Water Rates,1016,Newark,92.29 
Nottinghamshire Fire and Rescue Service ,104007,Castle Water Limited,Castle Water Limited,Operational Responses,5,202309,03/11/2022,P6,9103826,-335.27 ,335.27 ,2103,Water Rates,1026,Arnold,8.36 
Nottinghamshire Fire and Rescue Service ,104007,Castle Water Limited,Castle Water Limited,Operational Responses,5,202309,03/11/2022,P6,9103826,-335.27 ,335.27 ,2103,Water Rates,1026,Arnold,134.25 
Nottinghamshire Fire and Rescue Service ,104007,Castle Water Limited,Castle Water Limited,Management & Support Services,5,202309,03/11/2022,P6,9103831,-399.78 ,399.78 ,2103,Water Rates,1035,Headquarters,10.51 
Nottinghamshire Fire and Rescue Service ,104007,Castle Water Limited,Castle Water Limited,Management & Support Services,5,202309,03/11/2022,P6,9103831,-399.78 ,399.78 ,2103,Water Rates,1035,Headquarters,230.17 
Nottinghamshire Fire and Rescue Service ,104007,Castle Water Limited,Castle Water Limited,Operational Responses,5,202309,05/12/2022,P6,9103841,-748.99 ,748.99 ,2103,Water Rates,1029,Highfields Station,36.68 
Nottinghamshire Fire and Rescue Service ,104007,Castle Water Limited,Castle Water Limited,Operational Responses,5,202309,05/12/2022,P6,9103841,-748.99 ,748.99 ,2103,Water Rates,1029,Highfields Station,421.38 
Nottinghamshire Fire and Rescue Service ,104007,Castle Water Limited,Castle Water Limited,Operational Responses,5,202309,05/12/2022,P6,9103854,-532.11 ,532.11 ,2103,Water Rates,1019,West Bridgford,23.83 
Nottinghamshire Fire and Rescue Service ,104007,Castle Water Limited,Castle Water Limited,Operational Responses,5,202309,05/12/2022,P6,9103854,-532.11 ,532.11 ,2103,Water Rates,1019,West Bridgford,202.97 
Nottinghamshire Fire and Rescue Service ,104007,Castle Water Limited,Castle Water Limited,Management & Support Services,5,202309,05/12/2022,P6,9103859,-618.43 ,618.43 ,2103,Water Rates,1035,Headquarters,8.17 
Nottinghamshire Fire and Rescue Service ,104007,Castle Water Limited,Castle Water Limited,Management & Support Services,5,202309,05/12/2022,P6,9103859,-618.43 ,618.43 ,2103,Water Rates,1035,Headquarters,360.98 
Nottinghamshire Fire and Rescue Service ,104007,Castle Water Limited,Castle Water Limited,Operational Responses,5,202309,05/12/2022,P6,9103862,-355.65 ,355.65 ,2103,Water Rates,1015,Collingham,3.47 
Nottinghamshire Fire and Rescue Service ,104007,Castle Water Limited,Castle Water Limited,Operational Responses,5,202309,05/12/2022,P6,9103862,-355.65 ,355.65 ,2103,Water Rates,1015,Collingham,179.48 
Nottinghamshire Fire and Rescue Service ,104007,Castle Water Limited,Castle Water Limited,Operational Responses,5,202309,05/12/2022,P6,9103864,-492.32 ,492.32 ,2103,Water Rates,1016,Newark,23.28 
Nottinghamshire Fire and Rescue Service ,104007,Castle Water Limited,Castle Water Limited,Operational Responses,5,202309,05/12/2022,P6,9103864,-492.32 ,492.32 ,2103,Water Rates,1016,Newark,90.55 
Nottinghamshire Fire and Rescue Service ,104007,Castle Water Limited,Castle Water Limited,Operational Responses,5,202309,09/11/2022,P6,9103934,-261.88 ,261.88 ,2103,Water Rates,1008,Worksop,53.99 
Nottinghamshire Fire and Rescue Service ,104007,Castle Water Limited,Castle Water Limited,Operational Responses,5,202309,05/09/2022,P6,9103936,-320.29 ,320.29 ,2103,Water Rates,1008,Worksop,4.56 
Nottinghamshire Fire and Rescue Service ,104007,Castle Water Limited,Castle Water Limited,Operational Responses,5,202309,05/09/2022,P6,9103936,-320.29 ,320.29 ,2103,Water Rates,1008,Worksop,85.87 
Nottinghamshire Fire and Rescue Service ,104007,Castle Water Limited,Castle Water Limited,Operational Responses,5,202309,05/09/2022,P6,9103987,-538.00 ,538.00 ,2103,Water Rates,1019,West Bridgford,12.76 
Nottinghamshire Fire and Rescue Service ,104007,Castle Water Limited,Castle Water Limited,Operational Responses,5,202309,05/09/2022,P6,9103987,-538.00 ,538.00 ,2103,Water Rates,1019,West Bridgford,209.75 
Nottinghamshire Fire and Rescue Service ,104007,Castle Water Limited,Castle Water Limited,Operational Responses,5,202309,03/10/2022,P6,9103991,-524.65 ,524.65 ,2103,Water Rates,1019,West Bridgford,16.37 
Nottinghamshire Fire and Rescue Service ,104007,Castle Water Limited,Castle Water Limited,Operational Responses,5,202309,03/10/2022,P6,9103991,-524.65 ,524.65 ,2103,Water Rates,1019,West Bridgford,202.97 
Nottinghamshire Fire and Rescue Service ,104007,Castle Water Limited,Castle Water Limited,Operational Responses,5,202309,19/10/2022,P6,9104005,-310.56 ,310.56 ,2103,Water Rates,1008,Worksop,3.28 
Nottinghamshire Fire and Rescue Service ,104007,Castle Water Limited,Castle Water Limited,Operational Responses,5,202309,19/10/2022,P6,9104005,-310.56 ,310.56 ,2103,Water Rates,1008,Worksop,84.12 
Nottinghamshire Fire and Rescue Service ,104007,Castle Water Limited,Castle Water Limited,Operational Responses,5,202309,04/07/2022,P6,9104009,-479.03 ,479.03 ,2103,Water Rates,1016,Newark,4.31 
Nottinghamshire Fire and Rescue Service ,104007,Castle Water Limited,Castle Water Limited,Operational Responses,5,202309,04/07/2022,P6,9104009,-479.03 ,479.03 ,2103,Water Rates,1016,Newark,93.91 
Nottinghamshire Fire and Rescue Service ,104007,Castle Water Limited,Castle Water Limited,Operational Responses,5,202309,04/08/2022,P6,9104010,-496.39 ,496.39 ,2103,Water Rates,1016,Newark,8.20 
Nottinghamshire Fire and Rescue Service ,104007,Castle Water Limited,Castle Water Limited,Operational Responses,5,202309,04/08/2022,P6,9104010,-496.39 ,496.39 ,2103,Water Rates,1016,Newark,95.65 
Nottinghamshire Fire and Rescue Service ,104007,Castle Water Limited,Castle Water Limited,Operational Responses,5,202309,05/09/2022,P6,9104012,-501.19 ,501.19 ,2103,Water Rates,1016,Newark,13.00 
Nottinghamshire Fire and Rescue Service ,104007,Castle Water Limited,Castle Water Limited,Operational Responses,5,202309,05/09/2022,P6,9104012,-501.19 ,501.19 ,2103,Water Rates,1016,Newark,95.65 
Nottinghamshire Fire and Rescue Service ,104007,Castle Water Limited,Castle Water Limited,Operational Responses,5,202309,03/10/2022,P6,9104014,-391.84 ,391.84 ,2103,Water Rates,1016,Newark,16.36 
Nottinghamshire Fire and Rescue Service ,104007,Castle Water Limited,Castle Water Limited,Operational Responses,5,202309,03/10/2022,P6,9104014,-391.84 ,391.84 ,2103,Water Rates,1016,Newark,35.17 
Nottinghamshire Fire and Rescue Service ,104007,Castle Water Limited,Castle Water Limited,Operational Responses,5,202309,05/05/2022,P6,9104017,-466.39 ,466.39 ,2103,Water Rates,1016,Newark,0.64 
Nottinghamshire Fire and Rescue Service ,104007,Castle Water Limited,Castle Water Limited,Operational Responses,5,202309,05/05/2022,P6,9104017,-466.39 ,466.39 ,2103,Water Rates,1016,Newark,91.03 
Nottinghamshire Fire and Rescue Service ,104007,Castle Water Limited,Castle Water Limited,Operational Responses,5,202309,03/10/2022,P6,9104025,-268.91 ,268.91 ,2103,Water Rates,1012,Retford,151.52 
Nottinghamshire Fire and Rescue Service ,104007,Castle Water Limited,Castle Water Limited,Management & Support Services,5,202309,04/07/2022,P6,9104026,-269.43 ,269.43 ,2103,Water Rates,1030,Service Development Centre,2.19 
Nottinghamshire Fire and Rescue Service ,104007,Castle Water Limited,Castle Water Limited,Management & Support Services,5,202309,04/07/2022,P6,9104026,-269.43 ,269.43 ,2103,Water Rates,1030,Service Development Centre,157.95 
Nottinghamshire Fire and Rescue Service ,104007,Castle Water Limited,Castle Water Limited,Management & Support Services,5,202309,04/08/2022,P6,9104029,-280.43 ,280.43 ,2103,Water Rates,1030,Service Development Centre,4.55 
Nottinghamshire Fire and Rescue Service ,104007,Castle Water Limited,Castle Water Limited,Management & Support Services,5,202309,04/08/2022,P6,9104029,-280.43 ,280.43 ,2103,Water Rates,1030,Service Development Centre,163.06 
Nottinghamshire Fire and Rescue Service ,104007,Castle Water Limited,Castle Water Limited,Management & Support Services,5,202309,03/10/2022,P6,9104032,-879.99 ,879.99 ,2103,Water Rates,1030,Service Development Centre,8.91 
Nottinghamshire Fire and Rescue Service ,104007,Castle Water Limited,Castle Water Limited,Management & Support Services,5,202309,03/10/2022,P6,9104032,-879.99 ,879.99 ,2103,Water Rates,1030,Service Development Centre,515.35 
Nottinghamshire Fire and Rescue Service ,104007,Castle Water Limited,Castle Water Limited,Operational Responses,5,202309,04/08/2022,P6,9104042,-292.95 ,292.95 ,2103,Water Rates,1023,Stapleford,130.89 
Nottinghamshire Fire and Rescue Service ,104007,Castle Water Limited,Castle Water Limited,Operational Responses,5,202309,05/09/2022,P6,9104043,-292.95 ,292.95 ,2103,Water Rates,1023,Stapleford,130.89 
Nottinghamshire Fire and Rescue Service ,104007,Castle Water Limited,Castle Water Limited,Operational Responses,5,202309,04/05/2022,P6,9104045,-436.44 ,436.44 ,2103,Water Rates,1029,Highfields Station,43.96 
Nottinghamshire Fire and Rescue Service ,104007,Castle Water Limited,Castle Water Limited,Operational Responses,5,202309,04/05/2022,P6,9104045,-436.44 ,436.44 ,2103,Water Rates,1029,Highfields Station,232.08 
Nottinghamshire Fire and Rescue Service ,104007,Castle Water Limited,Castle Water Limited,Operational Responses,5,202309,03/10/2022,P6,9104046,-285.20 ,285.20 ,2103,Water Rates,1023,Stapleford,3.19 
Nottinghamshire Fire and Rescue Service ,104007,Castle Water Limited,Castle Water Limited,Operational Responses,5,202309,03/10/2022,P6,9104046,-285.20 ,285.20 ,2103,Water Rates,1023,Stapleford,125.79 
Nottinghamshire Fire and Rescue Service ,104007,Castle Water Limited,Castle Water Limited,Operational Responses,5,202309,04/07/2022,P6,9104067,-702.45 ,702.45 ,2103,Water Rates,1029,Highfields Station,4.31 
Nottinghamshire Fire and Rescue Service ,104007,Castle Water Limited,Castle Water Limited,Operational Responses,5,202309,04/07/2022,P6,9104067,-702.45 ,702.45 ,2103,Water Rates,1029,Highfields Station,412.99 
Nottinghamshire Fire and Rescue Service ,104007,Castle Water Limited,Castle Water Limited,Operational Responses,5,202309,04/08/2022,P6,9104069,-485.29 ,485.29 ,2103,Water Rates,1029,Highfields Station,8.13 
Nottinghamshire Fire and Rescue Service ,104007,Castle Water Limited,Castle Water Limited,Operational Responses,5,202309,04/08/2022,P6,9104069,-485.29 ,485.29 ,2103,Water Rates,1029,Highfields Station,282.19 
Nottinghamshire Fire and Rescue Service ,104007,Castle Water Limited,Castle Water Limited,Operational Responses,5,202309,05/09/2022,P6,9104070,"-2,320.50 ","2,320.50 ",2103,Water Rates,1029,Highfields Station,11.98 
Nottinghamshire Fire and Rescue Service ,104007,Castle Water Limited,Castle Water Limited,Operational Responses,5,202309,05/09/2022,P6,9104070,"-2,320.50 ","2,320.50 ",2103,Water Rates,1029,Highfields Station,"1,366.13 "
Nottinghamshire Fire and Rescue Service ,104007,Castle Water Limited,Castle Water Limited,Operational Responses,5,202309,03/10/2022,P6,9104072,-729.24 ,729.24 ,2103,Water Rates,1029,Highfields Station,16.93 
Nottinghamshire Fire and Rescue Service ,104007,Castle Water Limited,Castle Water Limited,Operational Responses,5,202309,03/10/2022,P6,9104072,-729.24 ,729.24 ,2103,Water Rates,1029,Highfields Station,421.38 
Nottinghamshire Fire and Rescue Service ,104007,Castle Water Limited,Castle Water Limited,Management & Support Services,5,202309,04/07/2022,P6,9104074,-377.80 ,377.80 ,2103,Water Rates,1035,Headquarters,223.39 
Nottinghamshire Fire and Rescue Service ,104007,Castle Water Limited,Castle Water Limited,Management & Support Services,5,202309,04/08/2022,P6,9104077,-399.27 ,399.27 ,2103,Water Rates,1035,Headquarters,7.16 
Nottinghamshire Fire and Rescue Service ,104007,Castle Water Limited,Castle Water Limited,Management & Support Services,5,202309,04/08/2022,P6,9104077,-399.27 ,399.27 ,2103,Water Rates,1035,Headquarters,231.85 
Nottinghamshire Fire and Rescue Service ,104007,Castle Water Limited,Castle Water Limited,Management & Support Services,5,202309,05/09/2022,P6,9104080,-402.38 ,402.38 ,2103,Water Rates,1035,Headquarters,10.27 
Nottinghamshire Fire and Rescue Service ,104007,Castle Water Limited,Castle Water Limited,Management & Support Services,5,202309,05/09/2022,P6,9104080,-402.38 ,402.38 ,2103,Water Rates,1035,Headquarters,231.85 
Nottinghamshire Fire and Rescue Service ,104007,Castle Water Limited,Castle Water Limited,Management & Support Services,5,202309,03/10/2022,P6,9104082,-390.75 ,390.75 ,2103,Water Rates,1035,Headquarters,12.95 
Nottinghamshire Fire and Rescue Service ,104007,Castle Water Limited,Castle Water Limited,Management & Support Services,5,202309,03/10/2022,P6,9104082,-390.75 ,390.75 ,2103,Water Rates,1035,Headquarters,223.39 
Nottinghamshire Fire and Rescue Service ,104007,Castle Water Limited,Castle Water Limited,Operational Responses,5,202309,05/09/2022,P6,9104098,-323.65 ,323.65 ,2103,Water Rates,1001,Mansfield,2.24 
Nottinghamshire Fire and Rescue Service ,104007,Castle Water Limited,Castle Water Limited,Operational Responses,5,202309,05/09/2022,P6,9104098,-323.65 ,323.65 ,2103,Water Rates,1001,Mansfield,89.22 
Nottinghamshire Fire and Rescue Service ,102276,Water Plus Limited (Payments Centre),Water Plus Limited (Payments Centre),Operational Responses,1,202309,24/11/2022,P6,9104109,-315.24 ,315.24 ,2103,Water Rates,1008,Worksop,75.75 
Nottinghamshire Fire and Rescue Service ,104007,Castle Water Limited,Castle Water Limited,Management & Support Services,5,202309,04/05/2022,P6,9104116,-305.38 ,305.38 ,2103,Water Rates,1030,Service Development Centre,41.61 
Nottinghamshire Fire and Rescue Service ,104007,Castle Water Limited,Castle Water Limited,Management & Support Services,5,202309,04/05/2022,P6,9104116,-305.38 ,305.38 ,2103,Water Rates,1030,Service Development Centre,155.91 
Nottinghamshire Fire and Rescue Service ,104007,Castle Water Limited,Castle Water Limited,Operational Responses,5,202309,06/06/2022,P6,9104119,-322.66 ,322.66 ,2103,Water Rates,1026,Arnold,132.51 
Nottinghamshire Fire and Rescue Service ,104007,Castle Water Limited,Castle Water Limited,Operational Responses,5,202309,05/05/2022,P6,9104136,-278.34 ,278.34 ,2103,Water Rates,1023,Stapleford,124.15 
Nottinghamshire Fire and Rescue Service ,104007,Castle Water Limited,Castle Water Limited,Operational Responses,5,202309,05/05/2022,P6,9104137,-313.75 ,313.75 ,2103,Water Rates,1026,Arnold,129.12 
Nottinghamshire Fire and Rescue Service ,104007,Castle Water Limited,Castle Water Limited,Operational Responses,5,202309,06/06/2022,P6,9104149,-415.91 ,415.91 ,2103,Water Rates,1029,Highfields Station,9.31 
Nottinghamshire Fire and Rescue Service ,104007,Castle Water Limited,Castle Water Limited,Operational Responses,5,202309,06/06/2022,P6,9104149,-415.91 ,415.91 ,2103,Water Rates,1029,Highfields Station,240.43 
Nottinghamshire Fire and Rescue Service ,104007,Castle Water Limited,Castle Water Limited,Operational Responses,5,202309,06/06/2022,P6,9104154,-482.05 ,482.05 ,2103,Water Rates,1016,Newark,0.20 
Nottinghamshire Fire and Rescue Service ,104007,Castle Water Limited,Castle Water Limited,Operational Responses,5,202309,06/06/2022,P6,9104154,-482.05 ,482.05 ,2103,Water Rates,1016,Newark,94.41 
Nottinghamshire Fire and Rescue Service ,104007,Castle Water Limited,Castle Water Limited,Management & Support Services,5,202309,06/06/2022,P6,9104155,-275.74 ,275.74 ,2103,Water Rates,1030,Service Development Centre,3.46 
Nottinghamshire Fire and Rescue Service ,104007,Castle Water Limited,Castle Water Limited,Management & Support Services,5,202309,06/06/2022,P6,9104155,-275.74 ,275.74 ,2103,Water Rates,1030,Service Development Centre,160.93 
Nottinghamshire Fire and Rescue Service ,104007,Castle Water Limited,Castle Water Limited,Operational Responses,5,202309,06/06/2022,P6,9104157,-289.13 ,289.13 ,2103,Water Rates,1023,Stapleford,129.19 
Nottinghamshire Fire and Rescue Service ,104007,Castle Water Limited,Castle Water Limited,Operational Responses,5,202309,04/07/2022,P6,9104158,-282.01 ,282.01 ,2103,Water Rates,1023,Stapleford,125.79 
Nottinghamshire Fire and Rescue Service ,104007,Castle Water Limited,Castle Water Limited,Operational Responses,5,202309,04/07/2022,P6,9104159,-315.05 ,315.05 ,2103,Water Rates,1026,Arnold,129.14 
Nottinghamshire Fire and Rescue Service ,104007,Castle Water Limited,Castle Water Limited,Operational Responses,5,202309,04/08/2022,P6,9104161,-328.26 ,328.26 ,2103,Water Rates,1026,Arnold,1.35 
Nottinghamshire Fire and Rescue Service ,104007,Castle Water Limited,Castle Water Limited,Operational Responses,5,202309,04/08/2022,P6,9104161,-328.26 ,328.26 ,2103,Water Rates,1026,Arnold,134.25 
Nottinghamshire Fire and Rescue Service ,104007,Castle Water Limited,Castle Water Limited,Operational Responses,5,202309,05/09/2022,P6,9104163,-330.72 ,330.72 ,2103,Water Rates,1026,Arnold,3.81 
Nottinghamshire Fire and Rescue Service ,104007,Castle Water Limited,Castle Water Limited,Operational Responses,5,202309,05/09/2022,P6,9104163,-330.72 ,330.72 ,2103,Water Rates,1026,Arnold,134.25 
Nottinghamshire Fire and Rescue Service ,104007,Castle Water Limited,Castle Water Limited,Operational Responses,5,202309,03/10/2022,P6,9104165,-323.94 ,323.94 ,2103,Water Rates,1026,Arnold,6.05 
Nottinghamshire Fire and Rescue Service ,104007,Castle Water Limited,Castle Water Limited,Operational Responses,5,202309,03/10/2022,P6,9104165,-323.94 ,323.94 ,2103,Water Rates,1026,Arnold,130.82 
Nottinghamshire Fire and Rescue Service ,104007,Castle Water Limited,Castle Water Limited,Operational Responses,5,202309,04/08/2022,P6,9104204,-533.36 ,533.36 ,2103,Water Rates,1006,Edwinstowe,8.12 
Nottinghamshire Fire and Rescue Service ,104007,Castle Water Limited,Castle Water Limited,Operational Responses,5,202309,04/08/2022,P6,9104204,-533.36 ,533.36 ,2103,Water Rates,1006,Edwinstowe,209.75 
Nottinghamshire Fire and Rescue Service ,104007,Castle Water Limited,Castle Water Limited,Operational Responses,5,202309,05/09/2022,P6,9104237,-289.84 ,289.84 ,2103,Water Rates,1027,Carlton,0.01 
Nottinghamshire Fire and Rescue Service ,104007,Castle Water Limited,Castle Water Limited,Operational Responses,5,202309,05/09/2022,P6,9104237,-289.84 ,289.84 ,2103,Water Rates,1027,Carlton,71.53 
Nottinghamshire Fire and Rescue Service ,104007,Castle Water Limited,Castle Water Limited,Operational Responses,5,202309,16/11/2022,P6,9103937,261.88 ,-261.88 ,2103,Water Rates,1008,Worksop,-53.99 
Nottinghamshire Fire and Rescue Service ,104007,Castle Water Limited,Castle Water Limited,Operational Responses,5,202309,08/07/2022,P6,9103956,353.01 ,-353.01 ,2103,Water Rates,1014,Southwell,-250.07 
Nottinghamshire Fire and Rescue Service ,104007,Castle Water Limited,Castle Water Limited,Operational Responses,5,202309,17/11/2022,P6,9104007,"1,327.13 ","-1,327.13 ",2103,Water Rates,1008,Worksop,-889.02 
Nottinghamshire Fire and Rescue Service ,104007,Castle Water Limited,Castle Water Limited,Operational Responses,5,202309,17/11/2022,P6,9104007,"1,327.13 ","-1,327.13 ",2103,Water Rates,1008,Worksop,4.24 
Nottinghamshire Fire and Rescue Service ,104007,Castle Water Limited,Castle Water Limited,Operational Responses,5,202309,25/11/2022,P6,9104048,"9,799.54 ","-9,799.54 ",2103,Water Rates,1023,Stapleford,"-5,845.92 "
Nottinghamshire Fire and Rescue Service ,104007,Castle Water Limited,Castle Water Limited,Operational Responses,5,202309,25/11/2022,P6,9104048,"9,799.54 ","-9,799.54 ",2103,Water Rates,1023,Stapleford,5.55 
Nottinghamshire Fire and Rescue Service ,104007,Castle Water Limited,Castle Water Limited,Operational Responses,5,202309,05/09/2022,P6,9104214,"2,072.42 ","-2,072.42 ",2103,Water Rates,1017,Bingham,"-1,295.36 "
Nottinghamshire Fire and Rescue Service ,104007,Castle Water Limited,Castle Water Limited,Operational Responses,5,202309,05/09/2022,P6,9104214,"2,072.42 ","-2,072.42 ",2103,Water Rates,1017,Bingham,44.33 
Nottinghamshire Fire and Rescue Service ,104007,Castle Water Limited,Castle Water Limited,Management & Support Services,5,202309,03/11/2022,P6,9103821,-910.42 ,910.42 ,2104,Sewerage and Environmental,1030,Service Development Centre,367.36 
Nottinghamshire Fire and Rescue Service ,104007,Castle Water Limited,Castle Water Limited,Operational Responses,5,202309,03/11/2022,P6,9103822,-752.61 ,752.61 ,2104,Sewerage and Environmental,1029,Highfields Station,299.10 
Nottinghamshire Fire and Rescue Service ,104007,Castle Water Limited,Castle Water Limited,Operational Responses,5,202309,03/11/2022,P6,9103823,-545.34 ,545.34 ,2104,Sewerage and Environmental,1019,West Bridgford,315.49 
Nottinghamshire Fire and Rescue Service ,104007,Castle Water Limited,Castle Water Limited,Operational Responses,5,202309,03/11/2022,P6,9103824,-502.34 ,502.34 ,2104,Sewerage and Environmental,1016,Newark,390.23 
Nottinghamshire Fire and Rescue Service ,104007,Castle Water Limited,Castle Water Limited,Operational Responses,5,202309,03/11/2022,P6,9103826,-335.27 ,335.27 ,2104,Sewerage and Environmental,1026,Arnold,192.66 
Nottinghamshire Fire and Rescue Service ,104007,Castle Water Limited,Castle Water Limited,Management & Support Services,5,202309,03/11/2022,P6,9103831,-399.78 ,399.78 ,2104,Sewerage and Environmental,1035,Headquarters,159.10 
Nottinghamshire Fire and Rescue Service ,104007,Castle Water Limited,Castle Water Limited,Operational Responses,5,202309,05/12/2022,P6,9103841,-748.99 ,748.99 ,2104,Sewerage and Environmental,1029,Highfields Station,290.93 
Nottinghamshire Fire and Rescue Service ,104007,Castle Water Limited,Castle Water Limited,Operational Responses,5,202309,05/12/2022,P6,9103854,-532.11 ,532.11 ,2104,Sewerage and Environmental,1019,West Bridgford,305.31 
Nottinghamshire Fire and Rescue Service ,104007,Castle Water Limited,Castle Water Limited,Management & Support Services,5,202309,05/12/2022,P6,9103859,-618.43 ,618.43 ,2104,Sewerage and Environmental,1035,Headquarters,249.28 
Nottinghamshire Fire and Rescue Service ,104007,Castle Water Limited,Castle Water Limited,Operational Responses,5,202309,05/12/2022,P6,9103862,-355.65 ,355.65 ,2104,Sewerage and Environmental,1015,Collingham,172.70 
Nottinghamshire Fire and Rescue Service ,104007,Castle Water Limited,Castle Water Limited,Operational Responses,5,202309,05/12/2022,P6,9103864,-492.32 ,492.32 ,2104,Sewerage and Environmental,1016,Newark,378.49 
Nottinghamshire Fire and Rescue Service ,104007,Castle Water Limited,Castle Water Limited,Operational Responses,5,202309,09/11/2022,P6,9103934,-261.88 ,261.88 ,2104,Sewerage and Environmental,1008,Worksop,207.89 
Nottinghamshire Fire and Rescue Service ,104007,Castle Water Limited,Castle Water Limited,Operational Responses,5,202309,05/09/2022,P6,9103936,-320.29 ,320.29 ,2104,Sewerage and Environmental,1008,Worksop,229.86 
Nottinghamshire Fire and Rescue Service ,104007,Castle Water Limited,Castle Water Limited,Operational Responses,5,202309,05/09/2022,P6,9103987,-538.00 ,538.00 ,2104,Sewerage and Environmental,1019,West Bridgford,315.49 
Nottinghamshire Fire and Rescue Service ,104007,Castle Water Limited,Castle Water Limited,Operational Responses,5,202309,03/10/2022,P6,9103991,-524.65 ,524.65 ,2104,Sewerage and Environmental,1019,West Bridgford,305.31 
Nottinghamshire Fire and Rescue Service ,104007,Castle Water Limited,Castle Water Limited,Operational Responses,5,202309,19/10/2022,P6,9104005,-310.56 ,310.56 ,2104,Sewerage and Environmental,1008,Worksop,223.16 
Nottinghamshire Fire and Rescue Service ,104007,Castle Water Limited,Castle Water Limited,Operational Responses,5,202309,04/07/2022,P6,9104009,-479.03 ,479.03 ,2104,Sewerage and Environmental,1016,Newark,380.81 
Nottinghamshire Fire and Rescue Service ,104007,Castle Water Limited,Castle Water Limited,Operational Responses,5,202309,04/08/2022,P6,9104010,-496.39 ,496.39 ,2104,Sewerage and Environmental,1016,Newark,392.54 
Nottinghamshire Fire and Rescue Service ,104007,Castle Water Limited,Castle Water Limited,Operational Responses,5,202309,05/09/2022,P6,9104012,-501.19 ,501.19 ,2104,Sewerage and Environmental,1016,Newark,392.54 
Nottinghamshire Fire and Rescue Service ,104007,Castle Water Limited,Castle Water Limited,Operational Responses,5,202309,03/10/2022,P6,9104014,-391.84 ,391.84 ,2104,Sewerage and Environmental,1016,Newark,340.31 
Nottinghamshire Fire and Rescue Service ,104007,Castle Water Limited,Castle Water Limited,Operational Responses,5,202309,05/05/2022,P6,9104017,-466.39 ,466.39 ,2104,Sewerage and Environmental,1016,Newark,374.72 
Nottinghamshire Fire and Rescue Service ,104007,Castle Water Limited,Castle Water Limited,Operational Responses,5,202309,03/10/2022,P6,9104025,-268.91 ,268.91 ,2104,Sewerage and Environmental,1012,Retford,117.39 
Nottinghamshire Fire and Rescue Service ,104007,Castle Water Limited,Castle Water Limited,Management & Support Services,5,202309,04/07/2022,P6,9104026,-269.43 ,269.43 ,2104,Sewerage and Environmental,1030,Service Development Centre,109.29 
Nottinghamshire Fire and Rescue Service ,104007,Castle Water Limited,Castle Water Limited,Management & Support Services,5,202309,04/08/2022,P6,9104029,-280.43 ,280.43 ,2104,Sewerage and Environmental,1030,Service Development Centre,112.82 
Nottinghamshire Fire and Rescue Service ,104007,Castle Water Limited,Castle Water Limited,Management & Support Services,5,202309,03/10/2022,P6,9104032,-879.99 ,879.99 ,2104,Sewerage and Environmental,1030,Service Development Centre,355.73 
Nottinghamshire Fire and Rescue Service ,104007,Castle Water Limited,Castle Water Limited,Operational Responses,5,202309,04/08/2022,P6,9104042,-292.95 ,292.95 ,2104,Sewerage and Environmental,1023,Stapleford,162.06 
Nottinghamshire Fire and Rescue Service ,104007,Castle Water Limited,Castle Water Limited,Operational Responses,5,202309,05/09/2022,P6,9104043,-292.95 ,292.95 ,2104,Sewerage and Environmental,1023,Stapleford,162.06 
Nottinghamshire Fire and Rescue Service ,104007,Castle Water Limited,Castle Water Limited,Operational Responses,5,202309,04/05/2022,P6,9104045,-436.44 ,436.44 ,2104,Sewerage and Environmental,1029,Highfields Station,160.40 
Nottinghamshire Fire and Rescue Service ,104007,Castle Water Limited,Castle Water Limited,Operational Responses,5,202309,03/10/2022,P6,9104046,-285.20 ,285.20 ,2104,Sewerage and Environmental,1023,Stapleford,156.22 
Nottinghamshire Fire and Rescue Service ,104007,Castle Water Limited,Castle Water Limited,Operational Responses,5,202309,04/07/2022,P6,9104067,-702.45 ,702.45 ,2104,Sewerage and Environmental,1029,Highfields Station,285.15 
Nottinghamshire Fire and Rescue Service ,104007,Castle Water Limited,Castle Water Limited,Operational Responses,5,202309,04/08/2022,P6,9104069,-485.29 ,485.29 ,2104,Sewerage and Environmental,1029,Highfields Station,194.97 
Nottinghamshire Fire and Rescue Service ,104007,Castle Water Limited,Castle Water Limited,Operational Responses,5,202309,05/09/2022,P6,9104070,"-2,320.50 ","2,320.50 ",2104,Sewerage and Environmental,1029,Highfields Station,942.39 
Nottinghamshire Fire and Rescue Service ,104007,Castle Water Limited,Castle Water Limited,Operational Responses,5,202309,03/10/2022,P6,9104072,-729.24 ,729.24 ,2104,Sewerage and Environmental,1029,Highfields Station,290.93 
Nottinghamshire Fire and Rescue Service ,104007,Castle Water Limited,Castle Water Limited,Management & Support Services,5,202309,04/07/2022,P6,9104074,-377.80 ,377.80 ,2104,Sewerage and Environmental,1035,Headquarters,154.41 
Nottinghamshire Fire and Rescue Service ,104007,Castle Water Limited,Castle Water Limited,Management & Support Services,5,202309,04/08/2022,P6,9104077,-399.27 ,399.27 ,2104,Sewerage and Environmental,1035,Headquarters,160.26 
Nottinghamshire Fire and Rescue Service ,104007,Castle Water Limited,Castle Water Limited,Management & Support Services,5,202309,05/09/2022,P6,9104080,-402.38 ,402.38 ,2104,Sewerage and Environmental,1035,Headquarters,160.26 
Nottinghamshire Fire and Rescue Service ,104007,Castle Water Limited,Castle Water Limited,Management & Support Services,5,202309,03/10/2022,P6,9104082,-390.75 ,390.75 ,2104,Sewerage and Environmental,1035,Headquarters,154.41 
Nottinghamshire Fire and Rescue Service ,104007,Castle Water Limited,Castle Water Limited,Operational Responses,5,202309,05/09/2022,P6,9104098,-323.65 ,323.65 ,2104,Sewerage and Environmental,1001,Mansfield,232.19 
Nottinghamshire Fire and Rescue Service ,102276,Water Plus Limited (Payments Centre),Water Plus Limited (Payments Centre),Operational Responses,1,202309,24/11/2022,P6,9104109,-315.24 ,315.24 ,2104,Sewerage and Environmental,1008,Worksop,52.93 
Nottinghamshire Fire and Rescue Service ,102276,Water Plus Limited (Payments Centre),Water Plus Limited (Payments Centre),Operational Responses,1,202309,24/11/2022,P6,9104109,-315.24 ,315.24 ,2104,Sewerage and Environmental,1008,Worksop,171.41 
Nottinghamshire Fire and Rescue Service ,104007,Castle Water Limited,Castle Water Limited,Management & Support Services,5,202309,04/05/2022,P6,9104116,-305.38 ,305.38 ,2104,Sewerage and Environmental,1030,Service Development Centre,107.86 
Nottinghamshire Fire and Rescue Service ,104007,Castle Water Limited,Castle Water Limited,Operational Responses,5,202309,06/06/2022,P6,9104119,-322.66 ,322.66 ,2104,Sewerage and Environmental,1026,Arnold,190.15 
Nottinghamshire Fire and Rescue Service ,104007,Castle Water Limited,Castle Water Limited,Operational Responses,5,202309,05/05/2022,P6,9104136,-278.34 ,278.34 ,2104,Sewerage and Environmental,1023,Stapleford,154.19 
Nottinghamshire Fire and Rescue Service ,104007,Castle Water Limited,Castle Water Limited,Operational Responses,5,202309,05/05/2022,P6,9104137,-313.75 ,313.75 ,2104,Sewerage and Environmental,1026,Arnold,184.63 
Nottinghamshire Fire and Rescue Service ,104007,Castle Water Limited,Castle Water Limited,Operational Responses,5,202309,06/06/2022,P6,9104149,-415.91 ,415.91 ,2104,Sewerage and Environmental,1029,Highfields Station,166.17 
Nottinghamshire Fire and Rescue Service ,104007,Castle Water Limited,Castle Water Limited,Operational Responses,5,202309,06/06/2022,P6,9104154,-482.05 ,482.05 ,2104,Sewerage and Environmental,1016,Newark,387.44 
Nottinghamshire Fire and Rescue Service ,104007,Castle Water Limited,Castle Water Limited,Management & Support Services,5,202309,06/06/2022,P6,9104155,-275.74 ,275.74 ,2104,Sewerage and Environmental,1030,Service Development Centre,111.35 
Nottinghamshire Fire and Rescue Service ,104007,Castle Water Limited,Castle Water Limited,Operational Responses,5,202309,06/06/2022,P6,9104157,-289.13 ,289.13 ,2104,Sewerage and Environmental,1023,Stapleford,159.94 
Nottinghamshire Fire and Rescue Service ,104007,Castle Water Limited,Castle Water Limited,Operational Responses,5,202309,04/07/2022,P6,9104158,-282.01 ,282.01 ,2104,Sewerage and Environmental,1023,Stapleford,156.22 
Nottinghamshire Fire and Rescue Service ,104007,Castle Water Limited,Castle Water Limited,Operational Responses,5,202309,04/07/2022,P6,9104159,-315.05 ,315.05 ,2104,Sewerage and Environmental,1026,Arnold,185.91 
Nottinghamshire Fire and Rescue Service ,104007,Castle Water Limited,Castle Water Limited,Operational Responses,5,202309,04/08/2022,P6,9104161,-328.26 ,328.26 ,2104,Sewerage and Environmental,1026,Arnold,192.66 
Nottinghamshire Fire and Rescue Service ,104007,Castle Water Limited,Castle Water Limited,Operational Responses,5,202309,05/09/2022,P6,9104163,-330.72 ,330.72 ,2104,Sewerage and Environmental,1026,Arnold,192.66 
Nottinghamshire Fire and Rescue Service ,104007,Castle Water Limited,Castle Water Limited,Operational Responses,5,202309,03/10/2022,P6,9104165,-323.94 ,323.94 ,2104,Sewerage and Environmental,1026,Arnold,187.07 
Nottinghamshire Fire and Rescue Service ,104007,Castle Water Limited,Castle Water Limited,Operational Responses,5,202309,04/08/2022,P6,9104204,-533.36 ,533.36 ,2104,Sewerage and Environmental,1006,Edwinstowe,315.49 
Nottinghamshire Fire and Rescue Service ,104007,Castle Water Limited,Castle Water Limited,Operational Responses,5,202309,05/09/2022,P6,9104237,-289.84 ,289.84 ,2104,Sewerage and Environmental,1027,Carlton,218.30 
Nottinghamshire Fire and Rescue Service ,104007,Castle Water Limited,Castle Water Limited,Operational Responses,5,202309,16/11/2022,P6,9103937,261.88 ,-261.88 ,2104,Sewerage and Environmental,1008,Worksop,-207.89 
Nottinghamshire Fire and Rescue Service ,104007,Castle Water Limited,Castle Water Limited,Operational Responses,5,202309,08/07/2022,P6,9103956,353.01 ,-353.01 ,2104,Sewerage and Environmental,1014,Southwell,-102.94 
Nottinghamshire Fire and Rescue Service ,104007,Castle Water Limited,Castle Water Limited,Operational Responses,5,202309,17/11/2022,P6,9104007,"1,327.13 ","-1,327.13 ",2104,Sewerage and Environmental,1008,Worksop,-442.35 
Nottinghamshire Fire and Rescue Service ,104007,Castle Water Limited,Castle Water Limited,Operational Responses,5,202309,25/11/2022,P6,9104048,"9,799.54 ","-9,799.54 ",2104,Sewerage and Environmental,1023,Stapleford,"-3,959.17 "
Nottinghamshire Fire and Rescue Service ,104007,Castle Water Limited,Castle Water Limited,Operational Responses,5,202309,05/09/2022,P6,9104214,"2,072.42 ","-2,072.42 ",2104,Sewerage and Environmental,1017,Bingham,-821.39 
Nottinghamshire Fire and Rescue Service ,100557,NCC Sundry Debtors,NCC Sundry Debtors,Operational Responses,4,202309,01/12/2022,P6,9103709,"-1,805.45 ","1,805.45 ",2201,Grounds Maintenance,1001,Mansfield,39.60 
Nottinghamshire Fire and Rescue Service ,100557,NCC Sundry Debtors,NCC Sundry Debtors,Operational Responses,4,202309,01/12/2022,P6,9103709,"-1,805.45 ","1,805.45 ",2201,Grounds Maintenance,1002,Blidworth,67.84 
Nottinghamshire Fire and Rescue Service ,100557,NCC Sundry Debtors,NCC Sundry Debtors,Operational Responses,4,202309,01/12/2022,P6,9103709,"-1,805.45 ","1,805.45 ",2201,Grounds Maintenance,1003,London Road,36.40 
Nottinghamshire Fire and Rescue Service ,100557,NCC Sundry Debtors,NCC Sundry Debtors,Operational Responses,4,202309,01/12/2022,P6,9103709,"-1,805.45 ","1,805.45 ",2201,Grounds Maintenance,1005,Ashfield,182.04 
Nottinghamshire Fire and Rescue Service ,100557,NCC Sundry Debtors,NCC Sundry Debtors,Operational Responses,4,202309,01/12/2022,P6,9103709,"-1,805.45 ","1,805.45 ",2201,Grounds Maintenance,1006,Edwinstowe,38.51 
Nottinghamshire Fire and Rescue Service ,100557,NCC Sundry Debtors,NCC Sundry Debtors,Operational Responses,4,202309,01/12/2022,P6,9103709,"-1,805.45 ","1,805.45 ",2201,Grounds Maintenance,1007,Warsop,3.32 
Nottinghamshire Fire and Rescue Service ,100557,NCC Sundry Debtors,NCC Sundry Debtors,Operational Responses,4,202309,01/12/2022,P6,9103709,"-1,805.45 ","1,805.45 ",2201,Grounds Maintenance,1008,Worksop,35.95 
Nottinghamshire Fire and Rescue Service ,100557,NCC Sundry Debtors,NCC Sundry Debtors,Operational Responses,4,202309,01/12/2022,P6,9103709,"-1,805.45 ","1,805.45 ",2201,Grounds Maintenance,1010,Harworth,42.26 
Nottinghamshire Fire and Rescue Service ,100557,NCC Sundry Debtors,NCC Sundry Debtors,Operational Responses,4,202309,01/12/2022,P6,9103709,"-1,805.45 ","1,805.45 ",2201,Grounds Maintenance,1011,Misterton,39.23 
Nottinghamshire Fire and Rescue Service ,100557,NCC Sundry Debtors,NCC Sundry Debtors,Operational Responses,4,202309,01/12/2022,P6,9103709,"-1,805.45 ","1,805.45 ",2201,Grounds Maintenance,1012,Retford,26.31 
Nottinghamshire Fire and Rescue Service ,100557,NCC Sundry Debtors,NCC Sundry Debtors,Operational Responses,4,202309,01/12/2022,P6,9103709,"-1,805.45 ","1,805.45 ",2201,Grounds Maintenance,1013,Tuxford,27.35 
Nottinghamshire Fire and Rescue Service ,100557,NCC Sundry Debtors,NCC Sundry Debtors,Operational Responses,4,202309,01/12/2022,P6,9103709,"-1,805.45 ","1,805.45 ",2201,Grounds Maintenance,1014,Southwell,26.00 
Nottinghamshire Fire and Rescue Service ,100557,NCC Sundry Debtors,NCC Sundry Debtors,Operational Responses,4,202309,01/12/2022,P6,9103709,"-1,805.45 ","1,805.45 ",2201,Grounds Maintenance,1015,Collingham,15.21 
Nottinghamshire Fire and Rescue Service ,100557,NCC Sundry Debtors,NCC Sundry Debtors,Operational Responses,4,202309,01/12/2022,P6,9103709,"-1,805.45 ","1,805.45 ",2201,Grounds Maintenance,1016,Newark,37.78 
Nottinghamshire Fire and Rescue Service ,100557,NCC Sundry Debtors,NCC Sundry Debtors,Operational Responses,4,202309,01/12/2022,P6,9103709,"-1,805.45 ","1,805.45 ",2201,Grounds Maintenance,1017,Bingham,64.08 
Nottinghamshire Fire and Rescue Service ,100557,NCC Sundry Debtors,NCC Sundry Debtors,Operational Responses,4,202309,01/12/2022,P6,9103709,"-1,805.45 ","1,805.45 ",2201,Grounds Maintenance,1019,West Bridgford,108.64 
Nottinghamshire Fire and Rescue Service ,100557,NCC Sundry Debtors,NCC Sundry Debtors,Operational Responses,4,202309,01/12/2022,P6,9103709,"-1,805.45 ","1,805.45 ",2201,Grounds Maintenance,1020,Stockhill,216.10 
Nottinghamshire Fire and Rescue Service ,100557,NCC Sundry Debtors,NCC Sundry Debtors,Operational Responses,4,202309,01/12/2022,P6,9103709,"-1,805.45 ","1,805.45 ",2201,Grounds Maintenance,1023,Stapleford,80.50 
Nottinghamshire Fire and Rescue Service ,100557,NCC Sundry Debtors,NCC Sundry Debtors,Operational Responses,4,202309,01/12/2022,P6,9103709,"-1,805.45 ","1,805.45 ",2201,Grounds Maintenance,1024,Eastwood,27.09 
Nottinghamshire Fire and Rescue Service ,100557,NCC Sundry Debtors,NCC Sundry Debtors,Operational Responses,4,202309,01/12/2022,P6,9103709,"-1,805.45 ","1,805.45 ",2201,Grounds Maintenance,1026,Arnold,11.31 
Nottinghamshire Fire and Rescue Service ,100557,NCC Sundry Debtors,NCC Sundry Debtors,Operational Responses,4,202309,01/12/2022,P6,9103709,"-1,805.45 ","1,805.45 ",2201,Grounds Maintenance,1027,Carlton,10.21 
Nottinghamshire Fire and Rescue Service ,100557,NCC Sundry Debtors,NCC Sundry Debtors,Operational Responses,4,202309,01/12/2022,P6,9103709,"-1,805.45 ","1,805.45 ",2201,Grounds Maintenance,1028,East Leake,132.86 
Nottinghamshire Fire and Rescue Service ,100557,NCC Sundry Debtors,NCC Sundry Debtors,Operational Responses,4,202309,01/12/2022,P6,9103709,"-1,805.45 ","1,805.45 ",2201,Grounds Maintenance,1029,Highfields Station,79.20 
Nottinghamshire Fire and Rescue Service ,100557,NCC Sundry Debtors,NCC Sundry Debtors,Management & Support Services,4,202309,01/12/2022,P6,9103709,"-1,805.45 ","1,805.45 ",2201,Grounds Maintenance,1030,Service Development Centre,156.75 
Nottinghamshire Fire and Rescue Service ,101851,Complete Business Solutions Group Ltd,Complete Business Solutions Group Ltd,Management & Support Services,1,202309,19/12/2022,P6,9104211,"-1,358.16 ","1,358.16 ",2203,Cleaning Materials,1035,Headquarters,"1,131.80 "
Nottinghamshire Fire and Rescue Service ,100557,NCC Sundry Debtors,NCC Sundry Debtors,Operational Responses,4,202309,01/12/2022,P6,9103706,"-33,678.30 ","33,678.30 ",2204,Contract Cleaning,1001,Mansfield,"2,336.96 "
Nottinghamshire Fire and Rescue Service ,100557,NCC Sundry Debtors,NCC Sundry Debtors,Operational Responses,4,202309,01/12/2022,P6,9103706,"-33,678.30 ","33,678.30 ",2204,Contract Cleaning,1002,Blidworth,132.59 
Nottinghamshire Fire and Rescue Service ,100557,NCC Sundry Debtors,NCC Sundry Debtors,Operational Responses,4,202309,01/12/2022,P6,9103706,"-33,678.30 ","33,678.30 ",2204,Contract Cleaning,1003,London Road,"2,579.47 "
Nottinghamshire Fire and Rescue Service ,100557,NCC Sundry Debtors,NCC Sundry Debtors,Operational Responses,4,202309,01/12/2022,P6,9103706,"-33,678.30 ","33,678.30 ",2204,Contract Cleaning,1005,Ashfield,"1,309.26 "
Nottinghamshire Fire and Rescue Service ,100557,NCC Sundry Debtors,NCC Sundry Debtors,Operational Responses,4,202309,01/12/2022,P6,9103706,"-33,678.30 ","33,678.30 ",2204,Contract Cleaning,1006,Edwinstowe,"1,010.88 "
Nottinghamshire Fire and Rescue Service ,100557,NCC Sundry Debtors,NCC Sundry Debtors,Operational Responses,4,202309,01/12/2022,P6,9103706,"-33,678.30 ","33,678.30 ",2204,Contract Cleaning,1007,Warsop,165.59 
Nottinghamshire Fire and Rescue Service ,100557,NCC Sundry Debtors,NCC Sundry Debtors,Operational Responses,4,202309,01/12/2022,P6,9103706,"-33,678.30 ","33,678.30 ",2204,Contract Cleaning,1008,Worksop,"1,645.61 "
Nottinghamshire Fire and Rescue Service ,100557,NCC Sundry Debtors,NCC Sundry Debtors,Operational Responses,4,202309,01/12/2022,P6,9103706,"-33,678.30 ","33,678.30 ",2204,Contract Cleaning,1010,Harworth,331.27 
Nottinghamshire Fire and Rescue Service ,100557,NCC Sundry Debtors,NCC Sundry Debtors,Operational Responses,4,202309,01/12/2022,P6,9103706,"-33,678.30 ","33,678.30 ",2204,Contract Cleaning,1011,Misterton,265.08 
Nottinghamshire Fire and Rescue Service ,100557,NCC Sundry Debtors,NCC Sundry Debtors,Operational Responses,4,202309,01/12/2022,P6,9103706,"-33,678.30 ","33,678.30 ",2204,Contract Cleaning,1012,Retford,"1,673.76 "
Nottinghamshire Fire and Rescue Service ,100557,NCC Sundry Debtors,NCC Sundry Debtors,Operational Responses,4,202309,01/12/2022,P6,9103706,"-33,678.30 ","33,678.30 ",2204,Contract Cleaning,1013,Tuxford,198.69 
Nottinghamshire Fire and Rescue Service ,100557,NCC Sundry Debtors,NCC Sundry Debtors,Operational Responses,4,202309,01/12/2022,P6,9103706,"-33,678.30 ","33,678.30 ",2204,Contract Cleaning,1014,Southwell,298.18 
Nottinghamshire Fire and Rescue Service ,100557,NCC Sundry Debtors,NCC Sundry Debtors,Operational Responses,4,202309,01/12/2022,P6,9103706,"-33,678.30 ","33,678.30 ",2204,Contract Cleaning,1015,Collingham,298.18 
Nottinghamshire Fire and Rescue Service ,100557,NCC Sundry Debtors,NCC Sundry Debtors,Operational Responses,4,202309,01/12/2022,P6,9103706,"-33,678.30 ","33,678.30 ",2204,Contract Cleaning,1016,Newark,"1,309.26 "
Nottinghamshire Fire and Rescue Service ,100557,NCC Sundry Debtors,NCC Sundry Debtors,Operational Responses,4,202309,01/12/2022,P6,9103706,"-33,678.30 ","33,678.30 ",2204,Contract Cleaning,1017,Bingham,198.88 
Nottinghamshire Fire and Rescue Service ,100557,NCC Sundry Debtors,NCC Sundry Debtors,Operational Responses,4,202309,01/12/2022,P6,9103706,"-33,678.30 ","33,678.30 ",2204,Contract Cleaning,1019,West Bridgford,"2,005.00 "
Nottinghamshire Fire and Rescue Service ,100557,NCC Sundry Debtors,NCC Sundry Debtors,Operational Responses,4,202309,01/12/2022,P6,9103706,"-33,678.30 ","33,678.30 ",2204,Contract Cleaning,1020,Stockhill,"1,640.62 "
Nottinghamshire Fire and Rescue Service ,100557,NCC Sundry Debtors,NCC Sundry Debtors,Operational Responses,4,202309,01/12/2022,P6,9103706,"-33,678.30 ","33,678.30 ",2204,Contract Cleaning,1023,Stapleford,496.91 
Nottinghamshire Fire and Rescue Service ,100557,NCC Sundry Debtors,NCC Sundry Debtors,Operational Responses,4,202309,01/12/2022,P6,9103706,"-33,678.30 ","33,678.30 ",2204,Contract Cleaning,1024,Eastwood,331.22 
Nottinghamshire Fire and Rescue Service ,100557,NCC Sundry Debtors,NCC Sundry Debtors,Operational Responses,4,202309,01/12/2022,P6,9103706,"-33,678.30 ","33,678.30 ",2204,Contract Cleaning,1026,Arnold,"1,226.43 "
Nottinghamshire Fire and Rescue Service ,100557,NCC Sundry Debtors,NCC Sundry Debtors,Operational Responses,4,202309,01/12/2022,P6,9103706,"-33,678.30 ","33,678.30 ",2204,Contract Cleaning,1027,Carlton,"2,303.82 "
Nottinghamshire Fire and Rescue Service ,100557,NCC Sundry Debtors,NCC Sundry Debtors,Operational Responses,4,202309,01/12/2022,P6,9103706,"-33,678.30 ","33,678.30 ",2204,Contract Cleaning,1028,East Leake,198.74 
Nottinghamshire Fire and Rescue Service ,100557,NCC Sundry Debtors,NCC Sundry Debtors,Operational Responses,4,202309,01/12/2022,P6,9103706,"-33,678.30 ","33,678.30 ",2204,Contract Cleaning,1029,Highfields Station,"4,319.04 "
Nottinghamshire Fire and Rescue Service ,100557,NCC Sundry Debtors,NCC Sundry Debtors,Management & Support Services,4,202309,01/12/2022,P6,9103706,"-33,678.30 ","33,678.30 ",2204,Contract Cleaning,1030,Service Development Centre,"1,789.81 "
Nottinghamshire Fire and Rescue Service ,100557,NCC Sundry Debtors,NCC Sundry Debtors,Operational Responses,4,202309,01/12/2022,P6,9103708,-406.01 ,406.01 ,2204,Contract Cleaning,1001,Mansfield,15.42 
Nottinghamshire Fire and Rescue Service ,100557,NCC Sundry Debtors,NCC Sundry Debtors,Operational Responses,4,202309,01/12/2022,P6,9103708,-406.01 ,406.01 ,2204,Contract Cleaning,1002,Blidworth,11.57 
Nottinghamshire Fire and Rescue Service ,100557,NCC Sundry Debtors,NCC Sundry Debtors,Operational Responses,4,202309,01/12/2022,P6,9103708,-406.01 ,406.01 ,2204,Contract Cleaning,1003,London Road,14.46 
Nottinghamshire Fire and Rescue Service ,100557,NCC Sundry Debtors,NCC Sundry Debtors,Operational Responses,4,202309,01/12/2022,P6,9103708,-406.01 ,406.01 ,2204,Contract Cleaning,1005,Ashfield,15.42 
Nottinghamshire Fire and Rescue Service ,100557,NCC Sundry Debtors,NCC Sundry Debtors,Operational Responses,4,202309,01/12/2022,P6,9103708,-406.01 ,406.01 ,2204,Contract Cleaning,1006,Edwinstowe,11.57 
Nottinghamshire Fire and Rescue Service ,100557,NCC Sundry Debtors,NCC Sundry Debtors,Operational Responses,4,202309,01/12/2022,P6,9103708,-406.01 ,406.01 ,2204,Contract Cleaning,1007,Warsop,11.57 
Nottinghamshire Fire and Rescue Service ,100557,NCC Sundry Debtors,NCC Sundry Debtors,Operational Responses,4,202309,01/12/2022,P6,9103708,-406.01 ,406.01 ,2204,Contract Cleaning,1008,Worksop,15.42 
Nottinghamshire Fire and Rescue Service ,100557,NCC Sundry Debtors,NCC Sundry Debtors,Operational Responses,4,202309,01/12/2022,P6,9103708,-406.01 ,406.01 ,2204,Contract Cleaning,1010,Harworth,11.57 
Nottinghamshire Fire and Rescue Service ,100557,NCC Sundry Debtors,NCC Sundry Debtors,Operational Responses,4,202309,01/12/2022,P6,9103708,-406.01 ,406.01 ,2204,Contract Cleaning,1011,Misterton,11.57 
Nottinghamshire Fire and Rescue Service ,100557,NCC Sundry Debtors,NCC Sundry Debtors,Operational Responses,4,202309,01/12/2022,P6,9103708,-406.01 ,406.01 ,2204,Contract Cleaning,1012,Retford,11.57 
Nottinghamshire Fire and Rescue Service ,100557,NCC Sundry Debtors,NCC Sundry Debtors,Operational Responses,4,202309,01/12/2022,P6,9103708,-406.01 ,406.01 ,2204,Contract Cleaning,1013,Tuxford,11.57 
Nottinghamshire Fire and Rescue Service ,100557,NCC Sundry Debtors,NCC Sundry Debtors,Operational Responses,4,202309,01/12/2022,P6,9103708,-406.01 ,406.01 ,2204,Contract Cleaning,1014,Southwell,11.57 
Nottinghamshire Fire and Rescue Service ,100557,NCC Sundry Debtors,NCC Sundry Debtors,Operational Responses,4,202309,01/12/2022,P6,9103708,-406.01 ,406.01 ,2204,Contract Cleaning,1015,Collingham,11.57 
Nottinghamshire Fire and Rescue Service ,100557,NCC Sundry Debtors,NCC Sundry Debtors,Operational Responses,4,202309,01/12/2022,P6,9103708,-406.01 ,406.01 ,2204,Contract Cleaning,1016,Newark,15.42 
Nottinghamshire Fire and Rescue Service ,100557,NCC Sundry Debtors,NCC Sundry Debtors,Operational Responses,4,202309,01/12/2022,P6,9103708,-406.01 ,406.01 ,2204,Contract Cleaning,1017,Bingham,11.57 
Nottinghamshire Fire and Rescue Service ,100557,NCC Sundry Debtors,NCC Sundry Debtors,Operational Responses,4,202309,01/12/2022,P6,9103708,-406.01 ,406.01 ,2204,Contract Cleaning,1019,West Bridgford,15.42 
Nottinghamshire Fire and Rescue Service ,100557,NCC Sundry Debtors,NCC Sundry Debtors,Operational Responses,4,202309,01/12/2022,P6,9103708,-406.01 ,406.01 ,2204,Contract Cleaning,1020,Stockhill,15.42 
Nottinghamshire Fire and Rescue Service ,100557,NCC Sundry Debtors,NCC Sundry Debtors,Operational Responses,4,202309,01/12/2022,P6,9103708,-406.01 ,406.01 ,2204,Contract Cleaning,1023,Stapleford,11.57 
Nottinghamshire Fire and Rescue Service ,100557,NCC Sundry Debtors,NCC Sundry Debtors,Operational Responses,4,202309,01/12/2022,P6,9103708,-406.01 ,406.01 ,2204,Contract Cleaning,1024,Eastwood,11.57 
Nottinghamshire Fire and Rescue Service ,100557,NCC Sundry Debtors,NCC Sundry Debtors,Operational Responses,4,202309,01/12/2022,P6,9103708,-406.01 ,406.01 ,2204,Contract Cleaning,1026,Arnold,15.42 
Nottinghamshire Fire and Rescue Service ,100557,NCC Sundry Debtors,NCC Sundry Debtors,Operational Responses,4,202309,01/12/2022,P6,9103708,-406.01 ,406.01 ,2204,Contract Cleaning,1027,Carlton,15.42 
Nottinghamshire Fire and Rescue Service ,100557,NCC Sundry Debtors,NCC Sundry Debtors,Operational Responses,4,202309,01/12/2022,P6,9103708,-406.01 ,406.01 ,2204,Contract Cleaning,1028,East Leake,11.57 
Nottinghamshire Fire and Rescue Service ,100557,NCC Sundry Debtors,NCC Sundry Debtors,Operational Responses,4,202309,01/12/2022,P6,9103708,-406.01 ,406.01 ,2204,Contract Cleaning,1029,Highfields Station,15.42 
Nottinghamshire Fire and Rescue Service ,100557,NCC Sundry Debtors,NCC Sundry Debtors,Management & Support Services,4,202309,01/12/2022,P6,9103708,-406.01 ,406.01 ,2204,Contract Cleaning,1030,Service Development Centre,34.69 
Nottinghamshire Fire and Rescue Service ,100557,NCC Sundry Debtors,NCC Sundry Debtors,Operational Responses,4,202309,01/12/2022,P6,9103707,-409.48 ,409.48 ,2205,Window Cleaning,1001,Mansfield,19.27 
Nottinghamshire Fire and Rescue Service ,100557,NCC Sundry Debtors,NCC Sundry Debtors,Operational Responses,4,202309,01/12/2022,P6,9103707,-409.48 ,409.48 ,2205,Window Cleaning,1002,Blidworth,11.57 
Nottinghamshire Fire and Rescue Service ,100557,NCC Sundry Debtors,NCC Sundry Debtors,Operational Responses,4,202309,01/12/2022,P6,9103707,-409.48 ,409.48 ,2205,Window Cleaning,1003,London Road,23.13 
Nottinghamshire Fire and Rescue Service ,100557,NCC Sundry Debtors,NCC Sundry Debtors,Operational Responses,4,202309,01/12/2022,P6,9103707,-409.48 ,409.48 ,2205,Window Cleaning,1005,Ashfield,11.57 
Nottinghamshire Fire and Rescue Service ,100557,NCC Sundry Debtors,NCC Sundry Debtors,Operational Responses,4,202309,01/12/2022,P6,9103707,-409.48 ,409.48 ,2205,Window Cleaning,1006,Edwinstowe,17.35 
Nottinghamshire Fire and Rescue Service ,100557,NCC Sundry Debtors,NCC Sundry Debtors,Operational Responses,4,202309,01/12/2022,P6,9103707,-409.48 ,409.48 ,2205,Window Cleaning,1007,Warsop,9.64 
Nottinghamshire Fire and Rescue Service ,100557,NCC Sundry Debtors,NCC Sundry Debtors,Operational Responses,4,202309,01/12/2022,P6,9103707,-409.48 ,409.48 ,2205,Window Cleaning,1008,Worksop,11.57 
Nottinghamshire Fire and Rescue Service ,100557,NCC Sundry Debtors,NCC Sundry Debtors,Operational Responses,4,202309,01/12/2022,P6,9103707,-409.48 ,409.48 ,2205,Window Cleaning,1010,Harworth,11.57 
Nottinghamshire Fire and Rescue Service ,100557,NCC Sundry Debtors,NCC Sundry Debtors,Operational Responses,4,202309,01/12/2022,P6,9103707,-409.48 ,409.48 ,2205,Window Cleaning,1011,Misterton,11.57 
Nottinghamshire Fire and Rescue Service ,100557,NCC Sundry Debtors,NCC Sundry Debtors,Operational Responses,4,202309,01/12/2022,P6,9103707,-409.48 ,409.48 ,2205,Window Cleaning,1012,Retford,15.42 
Nottinghamshire Fire and Rescue Service ,100557,NCC Sundry Debtors,NCC Sundry Debtors,Operational Responses,4,202309,01/12/2022,P6,9103707,-409.48 ,409.48 ,2205,Window Cleaning,1013,Tuxford,9.64 
Nottinghamshire Fire and Rescue Service ,100557,NCC Sundry Debtors,NCC Sundry Debtors,Operational Responses,4,202309,01/12/2022,P6,9103707,-409.48 ,409.48 ,2205,Window Cleaning,1014,Southwell,9.64 
Nottinghamshire Fire and Rescue Service ,100557,NCC Sundry Debtors,NCC Sundry Debtors,Operational Responses,4,202309,01/12/2022,P6,9103707,-409.48 ,409.48 ,2205,Window Cleaning,1015,Collingham,11.57 
Nottinghamshire Fire and Rescue Service ,100557,NCC Sundry Debtors,NCC Sundry Debtors,Operational Responses,4,202309,01/12/2022,P6,9103707,-409.48 ,409.48 ,2205,Window Cleaning,1016,Newark,11.57 
Nottinghamshire Fire and Rescue Service ,100557,NCC Sundry Debtors,NCC Sundry Debtors,Operational Responses,4,202309,01/12/2022,P6,9103707,-409.48 ,409.48 ,2205,Window Cleaning,1017,Bingham,11.57 
Nottinghamshire Fire and Rescue Service ,100557,NCC Sundry Debtors,NCC Sundry Debtors,Operational Responses,4,202309,01/12/2022,P6,9103707,-409.48 ,409.48 ,2205,Window Cleaning,1019,West Bridgford,13.49 
Nottinghamshire Fire and Rescue Service ,100557,NCC Sundry Debtors,NCC Sundry Debtors,Operational Responses,4,202309,01/12/2022,P6,9103707,-409.48 ,409.48 ,2205,Window Cleaning,1020,Stockhill,17.35 
Nottinghamshire Fire and Rescue Service ,100557,NCC Sundry Debtors,NCC Sundry Debtors,Operational Responses,4,202309,01/12/2022,P6,9103707,-409.48 ,409.48 ,2205,Window Cleaning,1023,Stapleford,11.57 
Nottinghamshire Fire and Rescue Service ,100557,NCC Sundry Debtors,NCC Sundry Debtors,Operational Responses,4,202309,01/12/2022,P6,9103707,-409.48 ,409.48 ,2205,Window Cleaning,1024,Eastwood,11.57 
Nottinghamshire Fire and Rescue Service ,100557,NCC Sundry Debtors,NCC Sundry Debtors,Operational Responses,4,202309,01/12/2022,P6,9103707,-409.48 ,409.48 ,2205,Window Cleaning,1026,Arnold,11.57 
Nottinghamshire Fire and Rescue Service ,100557,NCC Sundry Debtors,NCC Sundry Debtors,Operational Responses,4,202309,01/12/2022,P6,9103707,-409.48 ,409.48 ,2205,Window Cleaning,1027,Carlton,15.42 
Nottinghamshire Fire and Rescue Service ,100557,NCC Sundry Debtors,NCC Sundry Debtors,Operational Responses,4,202309,01/12/2022,P6,9103707,-409.48 ,409.48 ,2205,Window Cleaning,1028,East Leake,11.57 
Nottinghamshire Fire and Rescue Service ,100557,NCC Sundry Debtors,NCC Sundry Debtors,Operational Responses,4,202309,01/12/2022,P6,9103707,-409.48 ,409.48 ,2205,Window Cleaning,1029,Highfields Station,38.55 
Nottinghamshire Fire and Rescue Service ,100557,NCC Sundry Debtors,NCC Sundry Debtors,Management & Support Services,4,202309,01/12/2022,P6,9103707,-409.48 ,409.48 ,2205,Window Cleaning,1030,Service Development Centre,13.49 
Nottinghamshire Fire and Rescue Service ,103820,VIA East Midlands Ltd,VIA East Midlands Ltd,Management & Support Services,5,202309,18/10/2022,P6,9103720,"-12,964.68 ","12,964.68 ",3100,Fleet Maintenance - Planned,2084,Engineering,"10,830.55 "
Nottinghamshire Fire and Rescue Service ,101100,Angloco Limited,Angloco Limited,Management & Support Services,1,202309,26/11/2022,P6,9103783,"-6,957.66 ","6,957.66 ",3100,Fleet Maintenance - Planned,2084,Engineering,"5,798.05 "
Nottinghamshire Fire and Rescue Service ,103820,VIA East Midlands Ltd,VIA East Midlands Ltd,Management & Support Services,5,202309,15/11/2022,P6,9103803,"-4,376.86 ","4,376.86 ",3100,Fleet Maintenance - Planned,2084,Engineering,"3,647.38 "
Nottinghamshire Fire and Rescue Service ,103820,VIA East Midlands Ltd,VIA East Midlands Ltd,Management & Support Services,5,202309,08/12/2022,P6,9103897,"-3,940.43 ","3,940.43 ",3100,Fleet Maintenance - Planned,2084,Engineering,"3,314.78 "
Nottinghamshire Fire and Rescue Service ,102364,Woodway Engineering Limited,Woodway Engineering Limited,Management & Support Services,1,202309,22/12/2022,P6,9104310,-570.00 ,570.00 ,3101,Fleet Modification,2084,Engineering,475.00 
Nottinghamshire Fire and Rescue Service ,102407,Emergency One (Uk) Limited,Emergency One (Uk) Limited,Management & Support Services,1,202309,22/12/2022,P6,9104274,"-5,589.33 ","5,589.33 ",3102,Vehicle Maintenance Outsourced,2084,Engineering,"4,657.78 "
Nottinghamshire Fire and Rescue Service ,103820,VIA East Midlands Ltd,VIA East Midlands Ltd,Management & Support Services,5,202309,14/10/2022,P6,9103691,-276.78 ,276.78 ,3103,Fleet Maintenance - Unplanned,2084,Engineering,230.65 
Nottinghamshire Fire and Rescue Service ,103820,VIA East Midlands Ltd,VIA East Midlands Ltd,Management & Support Services,5,202309,18/10/2022,P6,9103719,"-58,402.54 ","58,402.54 ",3103,Fleet Maintenance - Unplanned,2084,Engineering,"48,668.78 "
Nottinghamshire Fire and Rescue Service ,103820,VIA East Midlands Ltd,VIA East Midlands Ltd,Management & Support Services,5,202309,15/11/2022,P6,9103804,"-8,952.24 ","8,952.24 ",3103,Fleet Maintenance - Unplanned,2084,Engineering,"7,460.20 "
Nottinghamshire Fire and Rescue Service ,103820,VIA East Midlands Ltd,VIA East Midlands Ltd,Management & Support Services,5,202309,08/12/2022,P6,9103914,"-24,213.04 ","24,213.04 ",3103,Fleet Maintenance - Unplanned,2084,Engineering,"20,177.53 "
Nottinghamshire Fire and Rescue Service ,102951,Logistics UK,Logistics UK,Management & Support Services,5,202309,15/12/2022,P6,9104199,"-5,428.45 ","5,428.45 ",3103,Fleet Maintenance - Unplanned,2084,Engineering,"4,523.71 "
Nottinghamshire Fire and Rescue Service ,103820,VIA East Midlands Ltd,VIA East Midlands Ltd,Management & Support Services,5,202309,18/10/2022,P6,9103690,"-1,168.45 ","1,168.45 ",3104,Fleet - Accident Repairs,2084,Engineering,973.71 
Nottinghamshire Fire and Rescue Service ,103820,VIA East Midlands Ltd,VIA East Midlands Ltd,Management & Support Services,5,202309,08/12/2022,P6,9103898,-558.22 ,558.22 ,3104,Fleet - Accident Repairs,2084,Engineering,465.18 
Nottinghamshire Fire and Rescue Service ,102228,Keltruck Limited,Keltruck Limited,Management & Support Services,1,202309,14/12/2022,P6,9103911,"-3,475.61 ","3,475.61 ",3104,Fleet - Accident Repairs,2084,Engineering,"2,896.34 "
Nottinghamshire Fire and Rescue Service ,102558,Merridale Ltd,Merridale Ltd,Management & Support Services,1,202309,14/12/2022,P6,9103880,"-2,616.57 ","2,616.57 ",3200,Fuel - Vehicle,2084,Engineering,"2,180.47 "
Nottinghamshire Fire and Rescue Service ,103766,CERTAS,CERTAS,Operational Responses,5,202309,14/12/2022,P6,9103917,"-10,434.94 ","10,434.94 ",3200,Fuel - Vehicle,1006,Edwinstowe,"8,695.78 "
Nottinghamshire Fire and Rescue Service ,103766,CERTAS,CERTAS,Operational Responses,5,202309,19/12/2022,P6,9104272,"-10,750.87 ","10,750.87 ",3200,Fuel - Vehicle,1029,Highfields Station,"8,959.06 "
Nottinghamshire Fire and Rescue Service ,103766,CERTAS,CERTAS,Operational Responses,5,202309,20/12/2022,P6,9104281,"-7,680.07 ","7,680.07 ",3200,Fuel - Vehicle,1020,Stockhill,"6,400.06 "
Nottinghamshire Fire and Rescue Service ,103766,CERTAS,CERTAS,Operational Responses,5,202309,20/12/2022,P6,9104282,"-2,593.86 ","2,593.86 ",3200,Fuel - Vehicle,1001,Mansfield,"2,161.55 "
Nottinghamshire Fire and Rescue Service ,103766,CERTAS,CERTAS,Operational Responses,5,202309,20/12/2022,P6,9104306,"-7,386.05 ","7,386.05 ",3200,Fuel - Vehicle,1027,Carlton,"6,155.04 "
Nottinghamshire Fire and Rescue Service ,103766,CERTAS,CERTAS,Operational Responses,5,202309,21/12/2022,P6,9104311,"-8,700.11 ","8,700.11 ",3200,Fuel - Vehicle,1003,London Road,"7,250.09 "
Nottinghamshire Fire and Rescue Service ,103942,The Lodge Tyre Co. Limited,The Lodge Tyre Co. Limited,Management & Support Services,5,202309,30/11/2022,P6,9103718,"-2,545.28 ","2,545.28 ",3202,Tyres,2084,Engineering,"2,121.08 "
Nottinghamshire Fire and Rescue Service ,103943,Teletrac Navman (UK) Limited,Teletrac Navman (UK) Limited,Management & Support Services,5,202309,01/12/2022,P6,9103694,"-1,071.96 ","1,071.96 ",3203,Motor Tax / Licenses,2084,Engineering,893.30 
Nottinghamshire Fire and Rescue Service ,100321,Drivercheck Ltd,Drivercheck Ltd,Management & Support Services,1,202309,30/11/2022,P6,9103717,-747.00 ,747.00 ,3203,Motor Tax / Licenses,2084,Engineering,622.50 
Nottinghamshire Fire and Rescue Service ,100321,Drivercheck Ltd,Drivercheck Ltd,Management & Support Services,1,202309,31/10/2022,P6,9103896,-614.70 ,614.70 ,3203,Motor Tax / Licenses,2084,Engineering,512.25 
Nottinghamshire Fire and Rescue Service ,104070,Apollo Signs & Engraving,Apollo Signs & Engraving,Management & Support Services,5,202309,24/11/2022,P6,9103685,"-1,385.64 ","1,385.64 ",4000,Operational Equipment Purchase,2084,Engineering,12.00 
Nottinghamshire Fire and Rescue Service ,104070,Apollo Signs & Engraving,Apollo Signs & Engraving,Management & Support Services,5,202309,24/11/2022,P6,9103685,"-1,385.64 ","1,385.64 ",4000,Operational Equipment Purchase,2084,Engineering,"1,142.70 "
Nottinghamshire Fire and Rescue Service ,101190,Lyon Equipment Limited,Lyon Equipment Limited,Management & Support Services,1,202309,30/11/2022,P6,9104307,-446.62 ,446.62 ,4000,Operational Equipment Purchase,2084,Engineering,372.19 
Nottinghamshire Fire and Rescue Service ,100224,Delta Fire,Delta Fire,Management & Support Services,1,202309,30/11/2022,P6,9104308,"-1,372.86 ","1,372.86 ",4000,Operational Equipment Purchase,2084,Engineering,"1,144.05 "
Nottinghamshire Fire and Rescue Service ,103094,Draeger Safety UK Limited,Draeger Safety UK Limited,Management & Support Services,5,202309,23/11/2022,P6,9103931,"-22,789.32 ","22,789.32 ",4002,Breathing Apparatus,2084,Engineering,"18,991.10 "
Nottinghamshire Fire and Rescue Service ,100434,Angus Fire,Angus Fire,Management & Support Services,1,202309,01/12/2022,P6,9103802,-447.35 ,447.35 ,4004,Fire Hose and Couplings,2084,Engineering,186.40 
Nottinghamshire Fire and Rescue Service ,102203,Flogas Britian Limited,Flogas Britian Limited,Management & Support Services,1,202309,15/12/2022,P6,9104195,"-1,173.22 ","1,173.22 ",4006,Oxygen and Other Gases,2084,Engineering,977.68 
Nottinghamshire Fire and Rescue Service ,104194,Bureau Veritas UK Limited,Bureau Veritas UK Limited,Management & Support Services,5,202309,15/12/2022,P6,9103903,"-1,800.00 ","1,800.00 ",4007,Equipment Annual Service,2084,Engineering,"1,500.00 "
Nottinghamshire Fire and Rescue Service ,104194,Bureau Veritas UK Limited,Bureau Veritas UK Limited,Management & Support Services,5,202309,15/12/2022,P6,9103904,"-1,800.00 ","1,800.00 ",4007,Equipment Annual Service,2084,Engineering,"1,500.00 "
Nottinghamshire Fire and Rescue Service ,103214,Excelerate Technology Limited,Excelerate Technology Limited,Management & Support Services,5,202309,09/12/2022,P6,9103916,"-1,295.98 ","1,295.98 ",4007,Equipment Annual Service,2084,Engineering,"1,079.98 "
Nottinghamshire Fire and Rescue Service ,100451,Babcock Critical Services Ltd - MA,Babcock Critical Services Ltd - MA,Management & Support Services,1,202309,20/12/2022,P6,9104297,"-4,404.04 ","4,404.04 ",4008,Equipment Reative Maintenance,2084,Engineering,"3,670.03 "
Nottinghamshire Fire and Rescue Service ,103483,Risual Limited,Risual Limited,Management & Support Services,5,202309,25/12/2022,P6,9103684,-270.00 ,270.00 ,4101,Computer Software Maintenance Contracts,2097,ICT Service Operations,225.00 
Nottinghamshire Fire and Rescue Service ,103373,GTT (Interoute/Easynet),GTT (Interoute/Easynet),Management & Support Services,5,202309,25/11/2022,P6,9103698,"-15,509.04 ","15,509.04 ",4101,Computer Software Maintenance Contracts,2095,ICT Digital Transformation,"12,924.21 "
Nottinghamshire Fire and Rescue Service ,103871,Zoho Corporation Private Limited,Zoho Corporation Private Limited,Management & Support Services,5,202309,07/12/2022,P6,9103780,"-7,957.20 ","7,957.20 ",4101,Computer Software Maintenance Contracts,2095,ICT Digital Transformation,"6,631.00 "
Nottinghamshire Fire and Rescue Service ,103483,Risual Limited,Risual Limited,Management & Support Services,5,202309,15/11/2022,P6,9104284,"-24,155.65 ","24,155.65 ",4101,Computer Software Maintenance Contracts,2097,ICT Service Operations,"20,129.71 "
Nottinghamshire Fire and Rescue Service ,103483,Risual Limited,Risual Limited,Management & Support Services,5,202309,22/11/2022,P6,9104285,"-16,859.77 ","16,859.77 ",4101,Computer Software Maintenance Contracts,2097,ICT Service Operations,"14,049.81 "
Nottinghamshire Fire and Rescue Service ,103871,Zoho Corporation Private Limited,Zoho Corporation Private Limited,Management & Support Services,5,202309,22/11/2022,P6,9104305,"-2,120.40 ","2,120.40 ",4101,Computer Software Maintenance Contracts,2097,ICT Service Operations,"1,767.00 "
Nottinghamshire Fire and Rescue Service ,102103,Ricoh Uk Ltd,Ricoh Uk Ltd,Management & Support Services,1,202309,10/10/2022,P6,9103922,"-1,143.65 ","1,143.65 ",4105,Photocopier,2097,ICT Service Operations,953.04 
Nottinghamshire Fire and Rescue Service ,102103,Ricoh Uk Ltd,Ricoh Uk Ltd,Management & Support Services,1,202309,10/10/2022,P6,9103923,-639.40 ,639.40 ,4105,Photocopier,2097,ICT Service Operations,532.83 
Nottinghamshire Fire and Rescue Service ,102103,Ricoh Uk Ltd,Ricoh Uk Ltd,Management & Support Services,1,202309,10/10/2022,P6,9103924,"-1,583.05 ","1,583.05 ",4105,Photocopier,2097,ICT Service Operations,"1,319.21 "
Nottinghamshire Fire and Rescue Service ,102103,Ricoh Uk Ltd,Ricoh Uk Ltd,Management & Support Services,1,202309,08/07/2022,P6,9103905,"3,294.63 ","-3,294.63 ",4105,Photocopier,2097,ICT Service Operations,"-2,745.53 "
Nottinghamshire Fire and Rescue Service ,100289,Home Office,Home Office,Management & Support Services,4,202309,25/11/2022,P6,9103699,"-61,320.68 ","61,320.68 ",4204,FireLink Contract Charges,2097,ICT Service Operations,"51,100.57 "
Nottinghamshire Fire and Rescue Service ,103483,Risual Limited,Risual Limited,Management & Support Services,5,202309,17/11/2022,P6,9103679,"-1,978.44 ","1,978.44 ",4301,Phones - Landline,2097,ICT Service Operations,"1,648.70 "
Nottinghamshire Fire and Rescue Service ,103092,Daisy Corporate Services Trading Limited,Daisy Corporate Services Trading Limited,Management & Support Services,1,202309,01/12/2022,P6,9103796,"-1,556.81 ","1,556.81 ",4301,Phones - Landline,2096,ICT Service Transformation,"1,297.34 "
Nottinghamshire Fire and Rescue Service ,101802,EE,EE,Management & Support Services,1,202309,01/11/2022,P6,9103704,"-3,145.85 ","3,145.85 ",4302,Phones - Mobiles,2097,ICT Service Operations,0.07 
Nottinghamshire Fire and Rescue Service ,101802,EE,EE,Management & Support Services,1,202309,01/11/2022,P6,9103704,"-3,145.85 ","3,145.85 ",4302,Phones - Mobiles,2097,ICT Service Operations,"2,621.48 "
Nottinghamshire Fire and Rescue Service ,101802,EE,EE,Management & Support Services,1,202309,01/12/2022,P6,9103795,"-3,997.23 ","3,997.23 ",4302,Phones - Mobiles,2097,ICT Service Operations,14.72 
Nottinghamshire Fire and Rescue Service ,101802,EE,EE,Management & Support Services,1,202309,01/12/2022,P6,9103795,"-3,997.23 ","3,997.23 ",4302,Phones - Mobiles,2097,ICT Service Operations,"3,318.76 "
Nottinghamshire Fire and Rescue Service ,102306,Northern Diver (International) Ltd,Northern Diver (International) Ltd,Management & Support Services,1,202309,25/11/2022,P6,9103693,-575.40 ,575.40 ,4532,Stationery,2086,Procurement,9.50 
Nottinghamshire Fire and Rescue Service ,100468,Specialised Canvas Group,Specialised Canvas Group,Management & Support Services,1,202309,30/11/2022,P6,9103759,-321.87 ,321.87 ,4532,Stationery,2086,Procurement,15.61 
Nottinghamshire Fire and Rescue Service ,100468,Specialised Canvas Group,Specialised Canvas Group,Management & Support Services,1,202309,30/11/2022,P6,9103760,-321.87 ,321.87 ,4532,Stationery,2086,Procurement,15.61 
Nottinghamshire Fire and Rescue Service ,101851,Complete Business Solutions Group Ltd,Complete Business Solutions Group Ltd,Management & Support Services,1,202309,09/12/2022,P6,9103839,-266.40 ,266.40 ,4532,Stationery,2075,Service Support Hub,222.00 
Nottinghamshire Fire and Rescue Service ,104081,Wel Medical Ltd,Wel Medical Ltd,Management & Support Services,5,202309,28/11/2022,P6,9103671,"-1,061.82 ","1,061.82 ",4534,Carriage and Packaging,2086,Procurement,9.95 
Nottinghamshire Fire and Rescue Service ,101312,Lift Components Limited,Lift Components Limited,Management & Support Services,1,202309,24/11/2022,P6,9103729,-253.20 ,253.20 ,4534,Carriage and Packaging,2086,Procurement,15.00 
Nottinghamshire Fire and Rescue Service ,102306,Northern Diver (International) Ltd,Northern Diver (International) Ltd,Management & Support Services,1,202309,25/11/2022,P6,9103746,-575.40 ,575.40 ,4534,Carriage and Packaging,2086,Procurement,9.50 
Nottinghamshire Fire and Rescue Service ,102306,Northern Diver (International) Ltd,Northern Diver (International) Ltd,Management & Support Services,1,202309,12/12/2022,P6,9103882,"-1,139.40 ","1,139.40 ",4534,Carriage and Packaging,2086,Procurement,9.50 
Nottinghamshire Fire and Rescue Service ,101796,Ruth Lee Limited,Ruth Lee Limited,Management & Support Services,1,202309,15/12/2022,P6,9103951,-805.20 ,805.20 ,4534,Carriage and Packaging,2086,Procurement,13.00 
Nottinghamshire Fire and Rescue Service ,101796,Ruth Lee Limited,Ruth Lee Limited,Management & Support Services,1,202309,15/12/2022,P6,9103951,-805.20 ,805.20 ,4534,Carriage and Packaging,2086,Procurement,60.00 
Nottinghamshire Fire and Rescue Service ,104157,Sound Culture Limited T/A MissyRedBoots Design,Sound Culture Limited T/A MissyRedBoots Design,Management & Support Services,5,202309,02/12/2022,P6,9103732,"-1,440.00 ","1,440.00 ",4552,Occupational Health Costs,2061,Occupational Health & Fitness,"1,200.00 "
Nottinghamshire Fire and Rescue Service ,101844,Nottinghamshire Relate,Nottinghamshire Relate,Management & Support Services,1,202309,21/12/2022,P6,9104316,"-1,600.00 ","1,600.00 ",4552,Occupational Health Costs,2061,Occupational Health & Fitness,"1,600.00 "
Nottinghamshire Fire and Rescue Service ,103855,Lavat Consulting Ltd T/A PS TAX,Lavat Consulting Ltd T/A PS TAX,Management & Support Services,5,202309,21/12/2022,P6,9104298,"-2,814.00 ","2,814.00 ",4554,Consultancy Fees - Non Estates Related,2081,Finance,"2,345.00 "
Nottinghamshire Fire and Rescue Service ,103588,Blizzard Protection System Ltd t/a Persys Medical UK,Blizzard Protection System Ltd t/a Persys Medical UK,Management & Support Services,5,202309,01/12/2022,P6,9103721,-291.37 ,291.37 ,4564,Trade Union Representatives,2086,Procurement,4.81 
Nottinghamshire Fire and Rescue Service ,101745,Networking Women In The Fire Service,Networking Women In The Fire Service,Management & Support Services,1,202309,27/10/2022,P6,9103809,-500.00 ,500.00 ,4581,Subscriptions,2054,Equalities Team,500.00 
Nottinghamshire Fire and Rescue Service ,100093,National Fire Sprinkler Network (Nfsn),National Fire Sprinkler Network (Nfsn),Management & Support Services,1,202309,01/12/2022,P6,9104303,-250.00 ,250.00 ,4581,Subscriptions,2081,Finance,250.00 
Nottinghamshire Fire and Rescue Service ,101851,Complete Business Solutions Group Ltd,Complete Business Solutions Group Ltd,Operational Responses,1,202309,23/08/2021,P6,9103798,-281.99 ,281.99 ,4583,Marketing and Publicity,1020,Stockhill,234.99 
Nottinghamshire Fire and Rescue Service ,101851,Complete Business Solutions Group Ltd,Complete Business Solutions Group Ltd,Management & Support Services,1,202309,16/12/2022,P6,9104277,-384.00 ,384.00 ,4583,Marketing and Publicity,2068,Prevention,384.00 
Nottinghamshire Fire and Rescue Service ,101851,Complete Business Solutions Group Ltd,Complete Business Solutions Group Ltd,Operational Responses,1,202309,20/12/2022,P6,9104278,-384.00 ,384.00 ,4583,Marketing and Publicity,1027,Carlton,384.00 
Nottinghamshire Fire and Rescue Service ,103243,Palintest Limited (Part of Halma PLC),Palintest Limited (Part of Halma PLC),Management & Support Services,5,202309,25/11/2022,P6,9103728,-901.68 ,901.68 ,4594,Training/ Teaching Equipment,2059,Corporate Training,751.40 
Nottinghamshire Fire and Rescue Service ,102073,B D Motor Spares,B D Motor Spares,Operational Responses,1,202309,08/12/2022,P6,9103770,"-1,584.00 ","1,584.00 ",4594,Training/ Teaching Equipment,1002,Blidworth,220.00 
Nottinghamshire Fire and Rescue Service ,102073,B D Motor Spares,B D Motor Spares,Operational Responses,1,202309,08/12/2022,P6,9103770,"-1,584.00 ","1,584.00 ",4594,Training/ Teaching Equipment,1006,Edwinstowe,440.00 
Nottinghamshire Fire and Rescue Service ,102073,B D Motor Spares,B D Motor Spares,Operational Responses,1,202309,08/12/2022,P6,9103770,"-1,584.00 ","1,584.00 ",4594,Training/ Teaching Equipment,1008,Worksop,440.00 
Nottinghamshire Fire and Rescue Service ,102073,B D Motor Spares,B D Motor Spares,Management & Support Services,1,202309,08/12/2022,P6,9103770,"-1,584.00 ","1,584.00 ",4594,Training/ Teaching Equipment,2059,Corporate Training,220.00 
Nottinghamshire Fire and Rescue Service ,100434,Angus Fire,Angus Fire,Management & Support Services,1,202309,01/12/2022,P6,9103802,-447.35 ,447.35 ,4594,Training/ Teaching Equipment,2059,Corporate Training,186.40 
Nottinghamshire Fire and Rescue Service ,101796,Ruth Lee Limited,Ruth Lee Limited,Operational Responses,1,202309,15/12/2022,P6,9103951,-805.20 ,805.20 ,4594,Training/ Teaching Equipment,1024,Eastwood,598.00 
Nottinghamshire Fire and Rescue Service ,103849,Vision Support Services Ltd,Vision Support Services Ltd,Operational Responses,5,202309,13/12/2022,P6,9103894,-347.42 ,347.42 ,4600,Community Safety Delivery Consumables,1005,Ashfield,289.52 
Nottinghamshire Fire and Rescue Service ,101782,Derbyshire Fire Authority,Derbyshire Fire Authority,Prevention and Education ,4,202309,16/12/2022,P6,9104267,"-2,267.36 ","2,267.36 ",4602,Fire Investigation Services,2026,Fire Investigation,"2,267.36 "
Nottinghamshire Fire and Rescue Service ,103603,Southwell Cathedral Chapter,Southwell Cathedral Chapter,Management & Support Services,5,202309,19/12/2022,P6,9104309,-500.00 ,500.00 ,4621,Contribution to Partnership Working,2050,Corporate Support,500.00 
Nottinghamshire Fire and Rescue Service ,100878,Nottinghamshire County Council,Nottinghamshire County Council,Management & Support Services,4,202309,22/11/2022,P6,9103788,"-9,246.00 ","9,246.00 ",7500,Treasury Services,1086,Corporate Core,"7,705.00 "
Nottinghamshire Fire and Rescue Service ,103981,Joseph Gleave and Son Limited -Joseph Gleave and Son (Holdings) Limited,Joseph Gleave and Son Limited -Joseph Gleave and Son (Holdings) Limited,Management & Support Services,5,202309,11/11/2022,P6,9103668,-262.68 ,262.68 ,B314,Stock,9999,Stock ,218.90 
Nottinghamshire Fire and Rescue Service ,103981,Joseph Gleave and Son Limited -Joseph Gleave and Son (Holdings) Limited,Joseph Gleave and Son Limited -Joseph Gleave and Son (Holdings) Limited,Management & Support Services,5,202309,25/11/2022,P6,9103669,-391.39 ,391.39 ,B314,Stock,9999,Stock ,326.16 
Nottinghamshire Fire and Rescue Service ,102190,Dot Promotional Clothing,Dot Promotional Clothing,Management & Support Services,1,202309,22/11/2022,P6,9103670,-870.00 ,870.00 ,B314,Stock,9999,Stock ,725.00 
Nottinghamshire Fire and Rescue Service ,104081,Wel Medical Ltd,Wel Medical Ltd,Management & Support Services,5,202309,28/11/2022,P6,9103671,"-1,061.82 ","1,061.82 ",B314,Stock,9999,Stock ,874.90 
Nottinghamshire Fire and Rescue Service ,102864,William Sugden & sons Limited,William Sugden & sons Limited,Management & Support Services,5,202309,29/11/2022,P6,9103673,"-1,191.35 ","1,191.35 ",B314,Stock,9999,Stock ,992.79 
Nottinghamshire Fire and Rescue Service ,102078,Thomas Kneale & Co Ltd,Thomas Kneale & Co Ltd,Management & Support Services,1,202309,24/11/2022,P6,9103677,"-1,166.40 ","1,166.40 ",B314,Stock,9999,Stock ,972.00 
Nottinghamshire Fire and Rescue Service ,103588,Blizzard Protection System Ltd t/a Persys Medical UK,Blizzard Protection System Ltd t/a Persys Medical UK,Management & Support Services,5,202309,01/12/2022,P6,9103721,-291.37 ,291.37 ,B314,Stock,9999,Stock ,238.00 
Nottinghamshire Fire and Rescue Service ,102190,Dot Promotional Clothing,Dot Promotional Clothing,Management & Support Services,1,202309,06/12/2022,P6,9103722,-446.40 ,446.40 ,B314,Stock,9999,Stock ,372.00 
Nottinghamshire Fire and Rescue Service ,102190,Dot Promotional Clothing,Dot Promotional Clothing,Management & Support Services,1,202309,06/12/2022,P6,9103724,-644.40 ,644.40 ,B314,Stock,9999,Stock ,537.00 
Nottinghamshire Fire and Rescue Service ,101312,Lift Components Limited,Lift Components Limited,Management & Support Services,1,202309,24/11/2022,P6,9103729,-253.20 ,253.20 ,B314,Stock,9999,Stock ,196.00 
Nottinghamshire Fire and Rescue Service ,102101,H-Squared,H-Squared,Management & Support Services,1,202309,05/12/2022,P6,9103737,-260.16 ,260.16 ,B314,Stock,9999,Stock ,216.80 
Nottinghamshire Fire and Rescue Service ,103981,Joseph Gleave and Son Limited -Joseph Gleave and Son (Holdings) Limited,Joseph Gleave and Son Limited -Joseph Gleave and Son (Holdings) Limited,Management & Support Services,5,202309,02/12/2022,P6,9103744,-748.25 ,748.25 ,B314,Stock,9999,Stock ,623.54 
Nottinghamshire Fire and Rescue Service ,102306,Northern Diver (International) Ltd,Northern Diver (International) Ltd,Management & Support Services,1,202309,25/11/2022,P6,9103746,-575.40 ,575.40 ,B314,Stock,9999,Stock ,470.00 
Nottinghamshire Fire and Rescue Service ,102190,Dot Promotional Clothing,Dot Promotional Clothing,Management & Support Services,1,202309,24/11/2022,P6,9103747,-870.00 ,870.00 ,B314,Stock,9999,Stock ,725.00 
Nottinghamshire Fire and Rescue Service ,100357,Eastern Shires Purchasing Organisation,Eastern Shires Purchasing Organisation,Management & Support Services,1,202309,29/11/2022,P6,9103748,"-2,077.24 ","2,077.24 ",B314,Stock,9999,Stock ,"1,731.04 "
Nottinghamshire Fire and Rescue Service ,100299,FireAngel Safety Technology Limited,FireAngel Safety Technology Limited,Management & Support Services,1,202309,28/11/2022,P6,9103749,"-11,388.00 ","11,388.00 ",B314,Stock,9999,Stock ,"9,490.00 "
Nottinghamshire Fire and Rescue Service ,100357,Eastern Shires Purchasing Organisation,Eastern Shires Purchasing Organisation,Management & Support Services,1,202309,06/12/2022,P6,9103751,-426.65 ,426.65 ,B314,Stock,9999,Stock ,355.54 
Nottinghamshire Fire and Rescue Service ,100468,Specialised Canvas Group,Specialised Canvas Group,Management & Support Services,1,202309,30/11/2022,P6,9103759,-321.87 ,321.87 ,B314,Stock,9999,Stock ,252.62 
Nottinghamshire Fire and Rescue Service ,100468,Specialised Canvas Group,Specialised Canvas Group,Management & Support Services,1,202309,30/11/2022,P6,9103760,-321.87 ,321.87 ,B314,Stock,9999,Stock ,252.62 
Nottinghamshire Fire and Rescue Service ,102190,Dot Promotional Clothing,Dot Promotional Clothing,Management & Support Services,1,202309,08/12/2022,P6,9103769,-480.00 ,480.00 ,B314,Stock,9999,Stock ,400.00 
Nottinghamshire Fire and Rescue Service ,102603,Yorkshire Purchasing Organisation,Yorkshire Purchasing Organisation,Management & Support Services,1,202309,08/08/2022,P6,9103773,-260.64 ,260.64 ,B314,Stock,9999,Stock ,217.20 
Nottinghamshire Fire and Rescue Service ,102306,Northern Diver (International) Ltd,Northern Diver (International) Ltd,Management & Support Services,1,202309,12/12/2022,P6,9103882,"-1,139.40 ","1,139.40 ",B314,Stock,9999,Stock ,940.00 
Nottinghamshire Fire and Rescue Service ,102376,Bristol Uniforms Limited,Bristol Uniforms Limited,Management & Support Services,1,202309,16/11/2022,P6,9103884,-779.93 ,779.93 ,B314,Stock,9999,Stock ,649.94 
Nottinghamshire Fire and Rescue Service ,102376,Bristol Uniforms Limited,Bristol Uniforms Limited,Management & Support Services,1,202309,16/11/2022,P6,9103885,-382.73 ,382.73 ,B314,Stock,9999,Stock ,318.94 
Nottinghamshire Fire and Rescue Service ,102376,Bristol Uniforms Limited,Bristol Uniforms Limited,Management & Support Services,1,202309,02/12/2022,P6,9103886,-311.09 ,311.09 ,B314,Stock,9999,Stock ,259.24 
Nottinghamshire Fire and Rescue Service ,102376,Bristol Uniforms Limited,Bristol Uniforms Limited,Management & Support Services,1,202309,02/12/2022,P6,9103887,"-1,530.91 ","1,530.91 ",B314,Stock,9999,Stock ,"1,275.76 "
Nottinghamshire Fire and Rescue Service ,100357,Eastern Shires Purchasing Organisation,Eastern Shires Purchasing Organisation,Management & Support Services,1,202309,13/12/2022,P6,9103891,"-1,066.98 ","1,066.98 ",B314,Stock,9999,Stock ,889.15 
Nottinghamshire Fire and Rescue Service ,100299,FireAngel Safety Technology Limited,FireAngel Safety Technology Limited,Management & Support Services,1,202309,08/12/2022,P6,9103899,"-15,600.00 ","15,600.00 ",B314,Stock,9999,Stock ,"13,000.00 "
Nottinghamshire Fire and Rescue Service ,100268,County Supplies-Sales Ledger,County Supplies-Sales Ledger,Management & Support Services,4,202309,19/12/2022,P6,9103952,-276.12 ,276.12 ,B314,Stock,9999,Stock ,230.10 
Nottinghamshire Fire and Rescue Service ,104129,Oxford Safety Supplies,Oxford Safety Supplies,Management & Support Services,5,202309,06/12/2022,P6,9103953,"-1,981.08 ","1,981.08 ",B314,Stock,9999,Stock ,"1,650.90 "
Nottinghamshire Fire and Rescue Service ,102376,Bristol Uniforms Limited,Bristol Uniforms Limited,Management & Support Services,1,202309,13/12/2022,P6,9103954,-502.96 ,502.96 ,B314,Stock,9999,Stock ,419.13 
Nottinghamshire Fire and Rescue Service ,102376,Bristol Uniforms Limited,Bristol Uniforms Limited,Management & Support Services,1,202309,09/12/2022,P6,9104225,-670.61 ,670.61 ,B314,Stock,9999,Stock ,558.84 
Nottinghamshire Fire and Rescue Service ,100299,FireAngel Safety Technology Limited,FireAngel Safety Technology Limited,Management & Support Services,1,202309,15/12/2022,P6,9104283,"-15,600.00 ","15,600.00 ",B314,Stock,9999,Stock ,"13,000.00 "
Nottinghamshire Fire and Rescue Service ,102190,Dot Promotional Clothing,Dot Promotional Clothing,Management & Support Services,1,202309,20/12/2022,P6,9104319,-698.88 ,698.88 ,B314,Stock,9999,Stock ,582.40 
Nottinghamshire Fire and Rescue Service ,102101,H-Squared,H-Squared,Management & Support Services,1,202309,20/12/2022,P6,9104320,-297.43 ,297.43 ,B314,Stock,9999,Stock ,247.86 
Nottinghamshire Fire and Rescue Service ,102101,H-Squared,H-Squared,Management & Support Services,1,202309,20/12/2022,P6,9104321,-288.60 ,288.60 ,B314,Stock,9999,Stock ,240.50 
Nottinghamshire Fire and Rescue Service ,102376,Bristol Uniforms Limited,Bristol Uniforms Limited,Management & Support Services,1,202309,03/11/2022,P6,9104328,"-1,356.56 ","1,356.56 ",B314,Stock,9999,Stock ,"1,130.47 "
Nottinghamshire Fire and Rescue Service ,104216,SME HCI Ltd (Trading as Vivup),SME HCI Ltd (Trading as Vivup),Management & Support Services,5,202309,01/01/2023,P6,9104286,-327.08 ,327.08 ,B900,Payover Debit,9999,Default,272.57 
Nottinghamshire Fire and Rescue Service ,104216,SME HCI Ltd (Trading as Vivup),SME HCI Ltd (Trading as Vivup),Management & Support Services,5,202309,01/12/2022,P6,9104291,-327.08 ,327.08 ,B900,Payover Debit,9999,Default,272.57 
Nottinghamshire Fire and Rescue Service ,104216,SME HCI Ltd (Trading as Vivup),SME HCI Ltd (Trading as Vivup),Management & Support Services,5,202309,01/09/2022,P6,9104294,-327.08 ,327.08 ,B900,Payover Debit,9999,Default,272.57 
Nottinghamshire Fire and Rescue Service ,104216,SME HCI Ltd (Trading as Vivup),SME HCI Ltd (Trading as Vivup),Management & Support Services,5,202309,01/10/2022,P6,9104295,-327.08 ,327.08 ,B900,Payover Debit,9999,Default,272.57 
Nottinghamshire Fire and Rescue Service ,104216,SME HCI Ltd (Trading as Vivup),SME HCI Ltd (Trading as Vivup),Management & Support Services,5,202309,01/11/2022,P6,9104296,-327.08 ,327.08 ,B900,Payover Debit,9999,Default,272.57 
Nottinghamshire Fire and Rescue Service ,102280,Amptron Electrical Services,Amptron Electrical Services,Management & Support Services,1,202309,30/11/2022,P6,9103765,"-48,000.00 ","48,000.00 ",C101,Building Works,4100,Fire Station Improvement & Refurbishments,"40,000.00 "
Nottinghamshire Fire and Rescue Service ,102280,Amptron Electrical Services,Amptron Electrical Services,Management & Support Services,1,202309,30/09/2022,P6,9103774,"-6,537.42 ","6,537.42 ",C104,Electrical / IT Comms /Printers Etc,4100,Fire Station Improvement & Refurbishments,"5,447.85 "
Nottinghamshire Fire and Rescue Service ,103814,Ergo Computing UK,Ergo Computing UK,Management & Support Services,5,202309,08/12/2022,P6,9103797,"-28,702.80 ","28,702.80 ",C200,Hardware,4300,ICT Capital Programme,"23,919.00 "
Nottinghamshire Fire and Rescue Service ,103344,Bytes Software Services Ltd,Bytes Software Services Ltd,Management & Support Services,5,202309,05/12/2022,P6,9103739,"-1,440.00 ","1,440.00 ",C202,Consultancy and Services,4300,ICT Capital Programme,"1,200.00 "
Nottinghamshire Fire and Rescue Service ,103344,Bytes Software Services Ltd,Bytes Software Services Ltd,Management & Support Services,5,202309,14/12/2022,P6,9103883,"-7,476.00 ","7,476.00 ",C202,Consultancy and Services,4300,ICT Capital Programme,"6,230.00 "
Nottinghamshire Fire and Rescue Service ,102306,Northern Diver (International) Ltd,Northern Diver (International) Ltd,Management & Support Services,1,202309,25/11/2022,P6,9103693,-575.40 ,575.40 ,C300,Other Equipment - Purchase,4200,Equipment Capital Programme,470.00 
Nottinghamshire Fire and Rescue Service ,102306,Northern Diver (International) Ltd,Northern Diver (International) Ltd,Management & Support Services,1,202309,13/12/2022,P6,9103893,657.00 ,-657.00 ,C300,Other Equipment - Purchase,4200,Equipment Capital Programme,-547.50 
,***Note:,,,,,,,,,,,,,,,
,"***The report shows the payment in its original form. This means disaggregating many invoices into individual component payments many of which will be less than £250 in their own right. This explains why you will see many of the amounts showing less than £250. They were, however, paid as part of an invoice of £250 or more.

**** The Invoice date is the date issued on the invoice. This date may fall out of the date range for the report. In most cases this is due to the invoice being received  late.",,,,,,,,,,,,,,,